Workbook

Sheet Comps
A1: Conversion Computations
C2: Select from
C3: dropdowns | D3: Enter values to convert in the colored cells
B4: Units | C4: Survey Ft
D5: Lat (DD.MMSSss) | E5: Long (DD.MMSSss) | F5: ="North ("&C4&")" -> North (Survey Ft) | G5: ="East ("&C4&")" -> East (Survey Ft) | H5: Convergence | I5: Grid Scale
B6: State Plane | C6: Central | D6: 44.15 | E6: 88.46 | F6: =Wis_SPC!C9 -> 154354.5609 | G6: =Wis_SPC!C10 -> 2291664.945 | H6: =Wis_SPC!C11 -> +0°52'12.760" | I6: =Wis_SPC!C12 -> 1
D7: =Wis_SPC!F9 -> +44°38'38.974204" | E7: =Wis_SPC!F10 -> +88°20'31.079858" | F7: 300000 | G7: 2400000 | H7: =Wis_SPC!F11 -> +1°10'11.530" | I7: =Wis_SPC!F12 -> 0.9999488627
B9: UTM / WTM | C9: UTM 16N | D9: 44.15 | E9: 88.46 | F9: =Wis_UTM!C9 -> 16079882.53 | G9: =Wis_UTM!C10 -> 1177670.054 | H9: =Wis_UTM!C11 -> -1°13'58.677" | I9: =Wis_UTM!C12 -> 0.9998446651
D10: =Wis_UTM!F9 -> +13°46'16.364963" | E10: =Wis_UTM!F10 -> +89°39'03.059568" | F10: 5000000 | G10: 700000 | H10: =Wis_UTM!F11 -> -0°37'53.242" | I10: =Wis_UTM!F12 -> 1.000616461
B12: WCCS Conic | C12: Sawyer | D12: 45.4 | E12: 90.43 | F12: =WCCS_Conic!C9 -> 311237.5825 | G12: =WCCS_Conic!C10 -> 813272.6538 | H12: =WCCS_Conic!C11 -> +0°17'14.104" | I12: =WCCS_Conic!C12 -> 1.000003312
B13: See Map | D13: =WCCS_Conic!F9 -> +45°20'58.649597" | E13: =WCCS_Conic!F10 -> +92°48'44.722434" | F13: 200000 | G13: 275000 | H13: =WCCS_Conic!F11 -> -1°13'03.969" | I13: =WCCS_Conic!F12 -> 1.000040903
B15: WCCS Cylindric | C15: Polk | D15: 45.14 | E15: 92.13 | F15: =WCCS_Cylindric!C9 -> 208919.2568 | G15: =WCCS_Cylindric!C10 -> 572350.9903 | H15: =WCCS_Cylindric!C11 -> +0°17'44.980" | I15: =WCCS_Cylindric!C12 -> 1.000013157
B16: See Map | D16: =WCCS_Cylindric!F9 -> +44°50'26.723394" | E16: =WCCS_Cylindric!F10 -> +92°10'52.891669" | F16: 65825.648 | G16: 582246.769 | H16: =WCCS_Cylindric!F11 -> +0°19'07.349" | I16: =WCCS_Cylindric!F12 -> 1.000015696
B18: WisCRS Conic | C18: Pierce | D18: 44.35 | E18: 92.11 | F18: =WisCRS_Conic!C9 -> 263007.196 | G18: =WisCRS_Conic!C10 -> 561580.4831 | H18: =WisCRS_Conic!C11 -> +0°01'52.416" | I18: =WisCRS_Conic!C37 -> 1.000036721
B19: See Map | D19: =WisCRS_Conic!F9 -> +44°10'51.897493" | E19: =WisCRS_Conic!F10 -> +93°21'53.364178" | F19: 118430.0705 | G19: 251695.2414 | H19: =WisCRS_Conic!F11 -> -0°47'56.006" | I19: =WisCRS_Conic!G46 -> 1.000067649
B21: WisCRS Cylindric | C21: Polk | D21: 45.14 | E21: 92.13 | F21: =WisCRS_Cylindric!C9 -> 208919.2621 | G21: =WisCRS_Cylindric!C10 -> 572350.9953 | H21: =WisCRS_Cylindric!C11 -> +0°17'44.980" | I21: =WisCRS_Cylindric!C12 -> 1.000056543
B22: See Map | D22: =WisCRS_Cylindric!F9 -> +44°59'05.708779" | E22: =WisCRS_Cylindric!F10 -> +91°31'54.973118" | F22: 120000 | G22: 750000 | H22: =WisCRS_Cylindric!F11 -> +0°46'43.134" | I22: =WisCRS_Cylindric!F12 -> 1.000136131

Sheet Wis_SPC
A1: Wis SPC - Lambert Conic
B3: Units | C3: =Comps!C4 -> Survey Ft | E3: =VLOOKUP($C$3,Units,3,FALSE) -> survey feet
B4: Zone | C4: =Comps!C6 -> Central | E4: =HLOOKUP($C$4,ZoneInfo,2,FALSE)&" Zone" -> Central Zone
B6: Direct Conversion | E6: Inverse Conversion
B7: Lat (f) | C7: =Comps!D6 -> 44.15 | D7: d.ms | E7: N | F7: =Comps!F7 -> 300000 | G7: =E3 -> survey feet
B8: Long (l) | C8: =Comps!E6 -> 88.46 | D8: d.ms | E8: E | F8: =Comps!G7 -> 2400000 | G8: =E3 -> survey feet
B9: N | C9: =C41 -> 154354.5609 | D9: =E3 -> survey feet | E9: Lat (f) | F9: =H43 -> +44°38'38.974204"
B10: E | C10: =C42 -> 2291664.945 | D10: =E3 -> survey feet | E10: Long (l) | F10: =H42 -> +88°20'31.079858"
B11: g | C11: =C39 -> +0°52'12.760" | E11: g | F11: =H44 -> +1°10'11.530"
B12: k | C12: =C40 -> 1 | E12: k | F12: =H45 -> 0.9999488627
A14: Zone Parameters | J14: Wis SPC Parameters
B15: Code | C15: =HLOOKUP($C$4,ZoneInfo,3,FALSE) -> 4802 | K15: Zone | L15: North | M15: Central | N15: South
A16: fs | B16: Std Par S | C16: =HLOOKUP($C$4,ZoneInfo,4,FALSE) -> 44.15 | D16: =RADIANS(DMStoDD(C16)) -> 0.772308194 | E16: radians | G16: Ellipsoid | K16: Name | L16: North | M16: Central | N16: South
A17: fn | B17: Std Par N | C17: =HLOOKUP($C$4,[0]!ZoneInfo,5,FALSE) -> 45.3 | D17: =RADIANS(DMStoDD(C17)) -> 0.7941248097 | E17: radians | G17: a | H17: ='GRS80_&_Units'!C5*VLOOKUP($C$3,Units,2,FALSE) -> 20925604.47 | I17: =$E$3 -> survey feet | K17: Code | L17: 4801 | M17: 4802 | N17: 4803
A18: lo | B18: Origin Long | C18: =HLOOKUP($C$4,ZoneInfo,6,FALSE) -> 90 | D18: =RADIANS(DMStoDD(C18)) -> 1.570796327 | E18: radians | G18: b | H18: ='GRS80_&_Units'!C6*VLOOKUP($C$3,Units,2,FALSE) -> 20855444.88 | I18: =$E$3 -> survey feet | J18: fs | K18: Std Par S | L18: 45.34 | M18: 44.15 | N18: 42.44 | O18: d.ms
A19: fb | B19: Origin Lat | C19: =HLOOKUP($C$4,ZoneInfo,7,FALSE) -> 43.5 | D19: =RADIANS(DMStoDD(C19)) -> 0.7650359888 | E19: radians | G19: f | H19: ='GRS80_&_Units'!C7 -> 0.003352810681 | J19: fn | K19: Std Par N | L19: 46.46 | M19: 45.3 | N19: 44.04 | O19: d.ms
A20: Nb | B20: Origin N | C20: =HLOOKUP($C$4,ZoneInfo,8,FALSE) -> 0 | D20: =C20*VLOOKUP($C$3,Units,2,FALSE) -> 0 | E20: =$E$3 -> survey feet | G20: e | H20: =SQRT('GRS80_&_Units'!C8) -> 0.08181919104 | J20: lo | K20: Origin Long | L20: =90 -> 90 | M20: 90 | N20: 90 | O20: d.ms
A21: Eo | B21: Origin E | C21: =HLOOKUP($C$4,ZoneInfo,9,FALSE) -> 600000 | D21: =C21*VLOOKUP($C$3,Units,2,FALSE) -> 1968500 | E21: =$E$3 -> survey feet | G21: e' | H21: =SQRT('GRS80_&_Units'!C9) -> 0.08209443815 | J21: fb | K21: Origin Lat | L21: 45.1 | M21: 43.5 | N21: 42 | O21: d.ms
J22: Nb | K22: Origin N | L22: 0 | M22: 0 | N22: 0 | O22: meters
A23: Zone Constants | J23: Eo | K23: Origin E | L23: 600000 | M23: 600000 | N23: 600000 | O23: meters
C24: Q | D24: W | G24: fo | H24: =ASIN((LN(D26*COS(D16)/(D25*COS(D17))))/(C26-C25)) -> 0.7832365155 | I24: radians
B25: South (Qs) | C25: =Q(H20,D16) -> 0.8583048085 | D25: =W(H20,D16) -> 0.9983688843 | H25: =FormatAngle(DDtoDMS(DEGREES(H24)),3) -> +44°52'34.128" | I25: Central Latitude
B26: North (Qn) | C26: =Q(H20,D17) -> 0.8889890505 | D26: =W(H20,D17) -> 0.9982957445 | G26: K | H26: =(H17*COS(D16)*EXP(C25*SIN(H24)))/(D25*SIN(H24)) -> 38989492.13 | I26: =$E$3 -> survey feet
B27: Grid Origin (Qb) | C27: =Q(H20,D19) -> 0.8482231907 | G27: Rb | H27: =H26/(EXP(C27*SIN(H24))) -> 21430298.32 | I27: =$E$3 -> survey feet
B28: Central (Qo) | C28: =Q(H20,H24) -> 0.8735911964 | D28: =W(H20,H24) -> 0.9983322497 | G28: Ro | H28: =H26/(EXP(C28*SIN(H24))) -> 21050128.37 | I28: =$E$3 -> survey feet
G29: ko | H29: =(D28*TAN(H24)*H28)/(H17) -> 0.9999407049
G30: No | H30: =H27+D20-H28 -> 380169.9489 | I30: =$E$3 -> survey feet
A33: Direct Conversion | C33: d.ms | F33: Inverse Conversion
B34: Lat (f) | C34: =C7 -> 44.15 | D34: =RADIANS(DMStoDD(C34)) -> 0.772308194 | E34: radians | G34: N | H34: =F7 -> 300000 | I34: =$E$3 -> survey feet
B35: Long (l) | C35: =C8 -> 88.46 | D35: =RADIANS(DMStoDD(C35)) -> 1.549270599 | E35: radians | G35: E | H35: =F8 -> 2400000 | I35: =$E$3 -> survey feet
B36: Q | C36: =Q(H20,D34) -> 0.8583048085 | G36: R' | H36: =H27-H34+D20 -> 21130298.32 | I36: =$E$3 -> survey feet
B37: R | C37: =H26/(EXP(C36*SIN(H24))) -> 21278397.93 | G37: E' | H37: =H35-D21 -> 431500 | I37: =$E$3 -> survey feet
B38: g | C38: =(D18-D35)*SIN(H24) -> 0.01518804989 | D38: radians | G38: g | H38: =ATAN(H37/H36) -> 0.02041807588 | I38: radians
B39: g | C39: =FormatAngle(DDtoDMS(DEGREES(C38)),3) -> +0°52'12.760" | G39: R | H39: =SQRT(H36^2+H37^2) -> 21134703.68
B40: k | C40: =SQRT((1-H20^2*SIN(D34)^2))*(C37*SIN(H24))/(H17*COS(D34)) -> 1 | G40: Q | H40: =(LN(H26/H39))/(SIN(H24)) -> 0.8679082491
B41: N | C41: =H27+D20-C37*COS(C38) -> 154354.5609 | D41: =$E$3 -> survey feet | G41: Long | H41: =D18-(H38/SIN(H24)) -> 1.541858185 | I41: radians
B42: E | C42: =D21+C37*SIN(C38) -> 2291664.945 | D42: =$E$3 -> survey feet | G42: Long (l) | H42: =FormatAngle(DDtoDMS(DEGREES(H41)),6) -> +88°20'31.079858"
G43: Lat (f) | H43: =H58 -> +44°38'38.974204"
G44: g | H44: =FormatAngle(DDtoDMS(DEGREES(H38)),3) -> +1°10'11.530"
G45: k | H45: =SQRT(1-H20^2*SIN(I52)^2)*(H39*SIN(H24)/(H17*COS(I52))) -> 0.9999488627
G47: Latitude comps - iterative
H48: f | I48: f (radians) | J48: f1 | K48: f2 | L48: (-f1/f2)
G49: initial | H49: =(EXP(2*H40)-1)/(EXP(2*H40)+1) -> 0.7003098061 | I49: =ASIN(H49) -> 0.7758314042 | J49: =Q($H$20,I49)-$H$40 -> -0.004693280729 | K49: =1/(1-H49^2)-$H$20^2/(1-$H$20^2*H49^2) -> 1.955737217 | L49: =-J49/K49 -> 0.002399750175
G50: 1 | H50: =H49+L49 -> 0.7027095563 | I50: =ASIN(H50) -> 0.779198725 | J50: =Q($H$20,I50)-$H$40 -> 1.561814955e-05 | K50: =1/(1-H50^2)-$H$20^2/(1-$H$20^2*H50^2) -> 1.968789982 | L50: =-J50/K50 -> -7.932867237e-06
G51: 2 | H51: =H50+L50 -> 0.7027016234 | I51: =ASIN(H51) -> 0.7791875752 | J51: =Q($H$20,I51)-$H$40 -> 1.725757315e-10 | K51: =1/(1-H51^2)-$H$20^2/(1-$H$20^2*H51^2) -> 1.968746473 | L51: =-J51/K51 -> -8.765767142e-11
G52: 3 | H52: =H51+L51 -> 0.7027016233 | I52: =ASIN(H52) -> 0.7791875751
H54: f (D-M-S)
G55: initial | H55: =FormatAngle(DDtoDMS(DEGREES(I49)),6) -> +44°27'06.714263"
G56: 1 | H56: =FormatAngle(DDtoDMS(DEGREES(I50)),6) -> +44°38'41.274041"
G57: 2 | H57: =FormatAngle(DDtoDMS(DEGREES(I51)),6) -> +44°38'38.974230"
G58: 3 | H58: =FormatAngle(DDtoDMS(DEGREES(I52)),6) -> +44°38'38.974204" | I58: final Lat

Sheet Wis_UTM
A1: Transverse Mercator Cylindric
B3: Units | C3: =Comps!C4 -> Survey Ft | D3: M, F, S | E3: =VLOOKUP($C$3,Units,3,FALSE) -> survey feet
B4: Zone | C4: =Comps!C9 -> UTM 16N | D4: 15, 16, W | E4: =HLOOKUP($C$4,TMZoneInfo,2,FALSE)&" Zone" -> UTM 16N Zone
B6: Direct Conversion | E6: Inverse Conversion
B7: Lat (f) | C7: =Comps!D9 -> 44.15 | D7: d.ms | E7: N | F7: =Comps!F10 -> 5000000 | G7: =E3 -> survey feet
B8: Long (l) | C8: =Comps!E9 -> 88.46 | D8: d.ms | E8: E | F8: =Comps!G10 -> 700000 | G8: =E3 -> survey feet
B9: N | C9: =C54 -> 16079882.53 | D9: =E3 -> survey feet | E9: Lat (f) | F9: =H56 -> +13°46'16.364963"
B10: E | C10: =C55 -> 1177670.054 | D10: =E3 -> survey feet | E10: Long (l) | F10: =H57 -> +89°39'03.059568"
B11: g | C11: =C63 -> -1°13'58.677" | E11: g | F11: =H65 -> -0°37'53.242"
B12: k | C12: =C64 -> 0.9998446651 | E12: k | F12: =H66 -> 1.000616461
A14: Zone Parameters | K14: Wis TM Parameters
B15: Code | C15: =HLOOKUP($C$4,TMZoneInfo,1,FALSE) -> UTM 16N | L15: Code | M15: UTM 15N | N15: UTM 16N | O15: WTM
B16: Name | C16: =HLOOKUP($C$4,TMZoneInfo,2,FALSE) -> UTM 16N | G16: Ellipsoid | L16: Name | M16: UTM 15N | N16: UTM 16N | O16: WTM
A17: lo | B17: Cen Mer | C17: =HLOOKUP($C$4,TMZoneInfo,3,FALSE) -> 87 | D17: =RADIANS(DMStoDD(C17)) -> 1.518436449 | E17: radians | G17: a | H17: ='GRS80_&_Units'!C5*VLOOKUP($C$3,Units,2,FALSE) -> 20925604.47 | I17: =$E$3 -> survey feet | K17: lo | L17: Cen Mer | M17: 93 | N17: 87 | O17: 90 | P17: d.ms
A18: ko | B18: Scale- 1: | C18: =HLOOKUP($C$4,TMZoneInfo,4,FALSE) -> 2500 | D18: =1-1/C18 -> 0.9996 | G18: b | H18: ='GRS80_&_Units'!C6*VLOOKUP($C$3,Units,2,FALSE) -> 20855444.88 | I18: =$E$3 -> survey feet | L18: Scale- 1: | M18: 2500 | N18: 2500 | O18: 2500
A19: lo | B19: Origin Long | C19: =HLOOKUP($C$4,TMZoneInfo,5,FALSE) -> 87 | D19: =RADIANS(DMStoDD(C19)) -> 1.518436449 | E19: radians | G19: f | H19: ='GRS80_&_Units'!C7 -> 0.003352810681 | K19: lo | L19: Origin Long | M19: 93 | N19: 87 | O19: 90 | P19: d.ms
A20: fo | B20: Origin Lat | C20: =HLOOKUP($C$4,TMZoneInfo,6,FALSE) -> 0 | D20: =RADIANS(DMStoDD(C20)) -> 0 | E20: radians | G20: e | H20: =SQRT('GRS80_&_Units'!C8) -> 0.08181919104 | K20: fo | L20: Origin Lat | M20: 0 | N20: 0 | O20: 0 | P20: d.ms
A21: No | B21: Origin N | C21: =HLOOKUP($C$4,TMZoneInfo,7,FALSE) -> 0 | D21: =C21*VLOOKUP($C$3,Units,2,FALSE) -> 0 | E21: =$E$3 -> survey feet | G21: e' | H21: =SQRT('GRS80_&_Units'!C9) -> 0.08209443815 | K21: No | L21: Origin N | M21: 0 | N21: 0 | O21: -4480000 | P21: meters
A22: Eo | B22: Origin E | C22: =HLOOKUP($C$4,TMZoneInfo,8,FALSE) -> 500000 | D22: =C22*VLOOKUP($C$3,Units,2,FALSE) -> 1640416.667 | E22: =$E$3 -> survey feet | K22: Eo | L22: Origin E | M22: 500000 | N22: 500000 | O22: 520000 | P22: meters
A24: Zone Constants
B25: n | C25: =(H17-H18)/(H17+H18) -> 0.001679220395
B26: r | C26: =H17*(1-C25)*(1-C25^2)*(1+9*C25^2/4+225*C25^4/64) -> 20890539.41 | D26: =$E$3 -> survey feet
B27: u2 | C27: =-3*C25/2+9*C25^3/16 -> -0.002518827928 | E27: v2 | F27: =3*C25/2-27*C25^3/32 -> 0.002518826597
B28: u4 | C28: =15*C25^2/16-15*C25^4/32 -> 2.643541086e-06 | E28: v4 | F28: =21*C25^2/16-55*C25^4/32 -> 3.700949072e-06
B29: u6 | C29: =-35*C25^3/48 -> -3.45262895e-09 | E29: v6 | F29: =151*C25^3/96 -> 7.447813877e-09
B30: u8 | C30: =315*C25^4/512 -> 4.891830424e-12 | E30: v8 | F30: =1097*C25^4/512 -> 1.703599357e-11
B31: U0 | C31: =2*(C27-2*C28+3*C29-4*C30) -> -0.005048250776 | E31: V0 | F31: =2*(F27-2*F28+3*F29-4*F30) -> 0.005022893948
B32: U2 | C32: =8*(C28-4*C29+10*C30) -> 2.125920416e-05 | E32: V2 | F32: =8*(F28-4*F29+10*F30) -> 2.937062541e-05
B33: U4 | C33: =32*(C29-6*C30) -> -1.114233578e-07 | E33: V4 | F33: =32*(F29-6*F30) -> 2.350591333e-07
B34: U6 | C34: =128*C30 -> 6.261542943e-10 | E34: V6 | F34: =128*F30 -> 2.180607177e-09
B35: wo | C35: =D20+SIN(D20)*COS(D20)*(C31+C32*COS(D20)^2+C33*COS(D20)^4+C34*COS(D20)^6) -> 0
B36: So | C36: =D18*C35*C26 -> 0 | D36: =$E$3 -> survey feet
A38: Direct Conversion | C38: d.ms | F38: Inverse Conversion
B39: Lat (f) | C39: =DMStoDD(C7) -> 44.25 | D39: =RADIANS(C39) -> 0.772308194 | E39: radians | G39: N | H39: =F7 -> 5000000 | I39: =$E$3 -> survey feet
B40: Long (l) | C40: =DMStoDD(C8) -> 88.76666667 | D40: =RADIANS(C40) -> 1.549270599 | E40: radians | G40: E | H40: =F8 -> 700000 | I40: =$E$3 -> survey feet
B41: L | C41: =(D40-D17)*COS(D39) -> 0.02208656165 | G41: w | H41: =(H39-D21+C36)/(D18*C26) -> 0.2394385661
B42: w | C42: =D39+SIN(D39)*COS(D39)*(C31+C32*COS(D39)^2+C33*COS(D39)^4+C34*COS(D39)^6) -> 0.769790371 | G42: ff | H42: =H41+(SIN(H41)*COS(H41))*(F31+F32*COS(H41)^2+F33*COS(H41)^4+F34*COS(H41)^6) -> 0.2406022327
B43: S | C43: =D18*C42*C26 -> 16074903.55 | D43: =$E$3 -> survey feet | G43: tf | H43: =TAN(H42) -> 0.2453550951
B44: t | C44: =TAN(D39) -> 0.9741568709 | G44: hf2 | H44: =H21^2*COS(H42)^2 -> 0.006356821687
B45: h2 | C45: =H21^2*COS(D39)^2 -> 0.003457958117 | G45: Rf | H45: =(D18*H17)/SQRT(1-H20^2*SIN(H42)^2) -> 20921210.83 | I45: =$E$3 -> survey feet
B46: R | C46: =(D18*H17)/SQRT(1-H20^2*SIN(D39)^2) -> 20951408.4 | D46: =$E$3 -> survey feet | G46: Q | H46: =(H40-D22)/H45 -> -0.04495039386
B47: A1 | C47: =-C46 -> -20951408.4 | G47: B2 | H47: =-H43/2*(1+H44) -> -0.1234573868
B48: A2 | C48: =C46*C44/2 -> 10204979.23 | G48: B3 | H48: =-(1+2*H43^2+H44)/6 -> -0.1877925112
B49: A3 | C49: =(1-C44^2+C45)/6 -> 0.009079391492 | G49: B4 | H49: =-(5+3*H43^2+H44*(1-9*H43^2)-4*H44^2)/12 -> -0.4319457064
B50: A4 | C50: =(5-C44^2+C45*(9+4*C45))/12 -> 0.3401823203 | G50: B5 | H50: =(5+28*H43^2+24*H43^4+H44*(6+8*H43^2))/120 -> 0.05678126826
B51: A5 | C51: =(5-18*C44^2+C44^4+C45*(14-58*C44^2))/120 -> -0.09435850582 | G51: B6 | H51: =(61+90*H43^2+45*H43^4+H44*(46-252*H43^2-90*H43^4))/360 -> 0.1854858457
B52: A6 | C52: =(61-58*C44^2+C44^4+C45*(270-330*C44^2))/360 -> 0.01863992694 | G52: B7 | H52: =-(61+662*H43^2+1320*H43^4+720*H43^6)/5040 -> -0.02099057264
B53: A7 | C53: =(61-479*C44^2+179*C44^4-C44^6)/5040 -> -0.0462729128 | G53: L | H53: =H46*(1+H46^2*(H48+H46^2*(H50+H52*H46^2))) -> -0.04493334821
B54: N | C54: =C43-C36+D21+C48*C41^2*(1+C41^2*(C50+C52*C41^2)) -> 16079882.53 | D54: =$E$3 -> survey feet | G54: Lat (f) | H54: =H42+H47*H46^2*(1+H46^2*(H49+H51*H46^2)) -> 0.2403529999
B55: E | C55: =D22+C47*C41*(1+C41^2*(C49+C41^2*(C51+C53*C41^2))) -> 1177670.054 | D55: =$E$3 -> survey feet | G55: Long (l) | H55: =D19-(H53/COS(H42)) -> 1.564702508
G56: Lat (f) | H56: =FormatAngle(DDtoDMS(DEGREES(H54)),6) -> +13°46'16.364963"
B57: C1 | C57: =-C44 -> -0.9741568709 | G57: Long (l) | H57: =FormatAngle(DDtoDMS(DEGREES(H55)),6) -> +89°39'03.059568"
B58: C3 | C58: =(1+3*C45+2*C45^2)/3 -> 0.3367992631
B59: C5 | C59: =(2-C44^2)/15 -> 0.07006789272 | G59: D1 | H59: =H43 -> 0.2453550951
B60: F2 | C60: =(1+C45)/2 -> 0.5017289791 | G60: D3 | H60: =-(1+H43^2-H44-2*H44^2)/3 -> -0.3512538275
B61: F4 | C61: =(5-4*C44^2+C45*(9-24*C44^2))/12 -> 0.09636985488 | G61: D5 | H61: =(2+5*H43^2+3*H43^4)/15 -> 0.1541244944
B62: g | C62: =C57*C41*(1+C41^2*(C58+C59*C41^2)) -> -0.02151931111 | D62: radians | G62: G2 | H62: =(1+H44)/2 -> 0.5031784108
B63: g | C63: =FormatAngle(DDtoDMS(DEGREES(C62)),3) -> -1°13'58.677" | G63: G4 | H63: =(1+5*H44)/12 -> 0.08598200904
B64: k | C64: =D18*(1+C60*C41^2*(1+C61*C41^2)) -> 0.9998446651 | G64: g | H64: =H59*H46*(1+H46^2*(H60+H61*H46^2)) -> -0.01102098772
G65: g | H65: =FormatAngle(DDtoDMS(DEGREES(H64)),3) -> -0°37'53.242"
G66: k | H66: =D18*(1+H62*H46^2*(1+H63*H46^2)) -> 1.000616461

Sheet WisCRS_Conic
A1: WisCRS Conic Systems
B3: Units | C3: =Comps!C4 -> Survey Ft
B4: County | C4: =Comps!C18 -> Pierce
B6: Direct Conversion | E6: Inverse Conversion
B7: Lat (f) | C7: =Comps!D18 -> 44.35 | D7: d.ms | E7: N | F7: =Comps!F19 -> 118430.0705 | G7: =C3 -> Survey Ft
B8: Long (l) | C8: =Comps!E18 -> 92.11 | D8: d.ms | E8: E | F8: =Comps!G19 -> 251695.2414 | G8: =C3 -> Survey Ft
B9: N | C9: =C40 -> 263007.196 | D9: =C3 -> Survey Ft | E9: Lat (f) | F9: =FormatAngle(DDtoDMS(DEGREES(G45)),6) -> +44°10'51.897493"
B10: E | C10: =C39 -> 561580.4831 | D10: =C3 -> Survey Ft | E10: Long (l) | F10: =FormatAngle(DDtoDMS(DEGREES(-G26)),6) -> +93°21'53.364178"
B11: g | C11: =C36 -> +0°01'52.416" | E11: g | F11: =FormatAngle(DDtoDMS(DEGREES(G25)),3) -> -0°47'56.006"
B12: k | E12: k
A14: County Parameters | C14: from table | D14: for computations | F14: Zone Constants
B15: County | C15: =VLOOKUP($C$4,WisCone,1,FALSE) -> Pierce | F15: vo | G15: =J17/(SQRT(1-J20^2*SIN(D17)^2)) -> 20960266.61 | L15: County Parameters - WisCRS Conic
A16: lO | B16: CM Long | C16: =VLOOKUP($C$4,WisCRS_Cone,2,FALSE) -> 92.1340000000 | D16: =RADIANS(DMStoDD(C16))*(-1) -> -1.609678384 | E16: radians | F16: ro | G16: =(J17*(1-J20^2))/((1-J20^2*SIN(D17)^2)^1.5) -> 20888982.01 | I16: GRS80 Ellipsoid | M16: Long (Cen Mer) | N16: False Easting | O16: False Northing | P16: Lat (Cen Par) | Q16: Scale
A17: fO | B17: CP Lat | C17: =VLOOKUP($C$4,WisCRS_Cone,5,FALSE) -> 44.3810135939 | D17: =RADIANS(DMStoDD(C17)) -> 0.7790477632 | E17: radians | F17: ro | G17: =(C20*G15)/TAN(D17) -> 21228954.29 | I17: a | J17: ='GRS80_&_Units'!C5*VLOOKUP(C3,Units,2,FALSE) -> 20925604.47 | K17: =C3 -> Survey Ft | L17: County | M17: (d.ms) | N17: (Meters) | O17: (Meters) | P17: (d.ms) | Q17: (Cen Par)
A18: EO | B18: False E | C18: =VLOOKUP($C$4,WisCRS_Cone,3,FALSE) -> 167640.3354 | D18: =C18*VLOOKUP(C3,Units,2,FALSE) -> 550000.0005 | E18: =C3 -> Survey Ft | F18: A0 | G18: =1-J20^2/4-3*J20^4/64-5*J20^6/256 -> 0.9983242984 | I18: b | J18: ='GRS80_&_Units'!C6*VLOOKUP(C3,Units,2,FALSE) -> 20855444.88 | K18: =C3 -> Survey Ft | L18: Bayfield | M18: 91.0910000000 | N18: 228600.4575 | O18: 148551.4837 | P18: 46.4010734158 | Q18: 1.00003312
A19: NO | B19: False N | C19: =VLOOKUP($C$4,WisCRS_Cone,4,FALSE) -> 86033.08759 | D19: =C19*VLOOKUP(C3,Units,2,FALSE) -> 282260.2215 | E19: =C3 -> Survey Ft | F19: A2 | G19: =(3/8)*(J20^2+J20^4/4+15*J20^6/128) -> 0.002514607073 | I19: f | J19: =(J17-J18)/J17 -> 0.003352810681 | L19: Burnett | M19: 92.2728000000 | N19: 64008.12762 | O19: 59445.90429 | P19: 45.5355373517 | Q19: 1.000038384
A20: kO | B20: CP Scale | C20: =VLOOKUP($C$4,WisCRS_Cone,6,FALSE) -> 1.000036298 | F20: A4 | G20: =(15/256)*(J20^4+3*J20^6/4) -> 2.63904662e-06 | I20: e | J20: =SQRT((J17^2-J18^2)/J17^2) -> 0.08181919104 | L20: Chippewa | M20: 91.1740000000 | N20: 60045.72002 | O20: 44091.43456 | P20: 44.5840284835 | Q20: 1.000039113
F21: A6 | G21: =(35/3072)*J20^6 -> 3.418046137e-09 | I21: e' | J21: =SQRT((J17^2-J18^2)/J18^2) -> 0.08209443815 | L21: Columbia | M21: 89.2340000000 | N21: 169164.3381 | O21: 111569.6133 | P21: 43.2745167925 | Q21: 1.00003498
F22: Mo | G22: =J17*(G18*D17-G19*SIN(2*D17)+G20*SIN(4*D17)-G21*SIN(6*D17)) -> 16222114.04 | L22: Crawford | M22: 90.5620000000 | N22: 113690.6274 | O22: 53703.12011 | P22: 43.1200200178 | Q22: 1.000034915
L23: Dane | M23: 89.2520000000 | N23: 247193.2944 | O23: 146591.9896 | P23: 43.0410257735 | Q23: 1.000038479
A24: Direct Conversion | C24: d.ms | F24: Inverse Conversion | L24: Eau Claire | M24: 91.1720000000 | N24: 120091.4402 | O24: 91687.92389 | P24: 44.5220212055 | Q24: 1.000035079
B25: Lat (f) | C25: =C7 -> 44.35 | D25: =RADIANS(DMStoDD(C25)) -> 0.7781259582 | E25: radians | F25: g | G25: =ATAN((F8-D18)/(G17-F7+D19)) -> -0.0139432727 | H25: radians | I25: =FormatAngle(DDtoDMS(DEGREES(G25)),3) -> -0°47'56.006" | L25: Green | M25: 89.5020000000 | N25: 170078.7403 | O25: 45830.29472 | P25: 42.3815224197 | Q25: 1.000039049
B26: Long (l) | C26: =C8*-1 -> -92.11 | D26: =RADIANS(DMStoDD(C26)) -> -1.608902682 | E26: radians | F26: Long (l) | G26: =(G25/SIN(D17))+D16 -> -1.629523574 | H26: radians | L26: Green Lake | M26: 89.1430000000 | N26: 150876.3018 | O26: 79170.77951 | P26: 43.4825200424 | Q26: 1.000034406
B27: Mf | C27: =J17*(G18*D25-G19*SIN(2*D25)+G20*SIN(4*D25)-G21*SIN(6*D25)) -> 16202858.56 | F27: iterative comps for M | G27: 1 | H27: 2 | I27: 3 | L27: Lafayette | M27: 89.5020000000 | N27: 170078.7403 | O27: 45830.29472 | P27: 42.3815224197 | Q27: 1.000039049
B28: M | C28: =C27-G22 -> -19255.4796 | F28: s | G28: =F7-D19-(F8-D18)*TAN(G25/2) -> -165909.857 | L28: Langlade | M28: 89.0200000000 | N28: 198425.197 | O28: 105279.7829 | P28: 45.0915253579 | Q28: 1.000062702
B29: M3 | C29: =C28^3/(6*G16*G15) -> -0.002717676078 | F29: Ma | G29: =G28/C20 -> -165903.8351 | H29: =G29+G37 -> -165902.1002 | I29: =H29+H37 -> -165902.1002 | L29: Marathon | M29: 89.4612000000 | N29: 74676.1493 | O29: 55049.26693 | P29: 44.5403255925 | Q29: 1.000053289
B30: M4 | C30: =(C28^4*TAN(D17)*(1-4*J21^2*COS(D17)^2))/(24*G16*G15^2) -> 6.078692441e-07 | F30: M3a | G30: =G29^3/(6*G16*G15) -> -1.738216818 | H30: =H29^3/(6*G16*G15) -> -1.738162289 | I30: =I29^3/(6*G16*G15) -> -1.738162289 | L30: Marquette | M30: 89.1430000000 | N30: 150876.3018 | O30: 79170.77951 | P30: 43.4825200424 | Q30: 1.000034406
B31: M5 | C31: =(C28^5*(5+3*TAN(D17)^2-3*J21^2-J21^2*COS(D17)^2))/(120*G16^2*G15^2) -> -9.091824816e-10 | F31: M4a | G31: =(G29^4*TAN(D17)*(1-4*J21^2*COS(D17)^2))/(24*G16*G15^2) -> 0.003349797174 | H31: =(H29^4*TAN(D17)*(1-4*J21^2*COS(D17)^2))/(24*G16*G15^2) -> 0.003349657061 | I31: =(I29^4*TAN(D17)*(1-4*J21^2*COS(D17)^2))/(24*G16*G15^2) -> 0.003349657061 | L31: Monroe | M31: 90.3830000000 | N31: 204521.209 | O31: 121923.9861 | P31: 44.0000266143 | Q31: 1.000043412
B32: M6 | C32: =(C28^6*TAN(D17)*(7+4*TAN(D17)^2))/(240*G16^2*G15^3) -> 5.688361331e-13 | F32: M5a | G32: =(G29^5*(5+3*TAN(D17)^2-3*J21^2-J21^2*COS(D17)^2))/(120*G16^2*G15^2) -> -4.316795606e-05 | H32: =(H29^5*(5+3*TAN(D17)^2-3*J21^2-J21^2*COS(D17)^2))/(120*G16^2*G15^2) -> -4.316569907e-05 | I32: =(I29^5*(5+3*TAN(D17)^2-3*J21^2-J21^2*COS(D17)^2))/(120*G16^2*G15^2) -> -4.316569907e-05 | L32: Oneida | M32: 89.3240000000 | N32: 70104.14009 | O32: 57588.03463 | P32: 45.4215205573 | Q32: 1.000068697
B33: M7 | C33: =(C28^7*(60*TAN(D17)^4+180*TAN(D17)^2+61))/(5040*G16^3*G15^3) -> -6.809810219e-16 | F33: M6a | G33: =(G29^6*TAN(D17)*(7+4*TAN(D17)^2))/(240*G16^2*G15^3) -> 2.327017706e-07 | H33: =(H29^6*TAN(D17)*(7+4*TAN(D17)^2))/(240*G16^2*G15^3) -> 2.326871708e-07 | I33: =(I29^6*TAN(D17)*(7+4*TAN(D17)^2))/(240*G16^2*G15^3) -> 2.326871708e-07 | L33: Pierce | M33: 92.1340000000 | N33: 167640.3354 | O33: 86033.08759 | P33: 44.3810135939 | Q33: 1.000036298
B34: s | C34: =C20*(SUM(C28:C33)) -> -19256.18124 | D34: =C3 -> Survey Ft | F34: M7a | G34: =(G29^7*(60*TAN(D17)^4+180*TAN(D17)^2+61))/(5040*G16^3*G15^3) -> -2.400212021e-09 | H34: =(H29^7*(60*TAN(D17)^4+180*TAN(D17)^2+61))/(5040*G16^3*G15^3) -> -2.400036334e-09 | I34: =(I29^7*(60*TAN(D17)^4+180*TAN(D17)^2+61))/(5040*G16^3*G15^3) -> -2.400036334e-09 | L34: Pepin | M34: 92.1340000000 | N34: 167640.3354 | O34: 86033.08759 | P34: 44.3810135939 | Q34: 1.000036298
B35: g | C35: =(D26-D16)*SIN(D17) -> 0.0005450098096 | D35: radians | F35: -Fa | G35: =(G28/C20)-SUM(G29:G34) -> 1.734909959 | H35: =(G28/C20)-SUM(H29:H34) -> 5.820766091e-10 | I35: =(G28/C20)-SUM(I29:I34) -> 0 | L35: Portage | M35: 89.3000000000 | N35: 56388.11283 | O35: 50022.18744 | P35: 44.2500566311 | Q35: 1.000039936
C36: =FormatAngle(DDtoDMS(DEGREES(C35)),3) -> +0°01'52.416" | F36: dF/dM | G36: =1+(3*G30+4*G31+5*G32+6*G33+7*G34)/G29 -> 1.000031352 | H36: =1+(3*H30+4*H31+5*H32+6*H33+7*H34)/H29 -> 1.000031352 | I36: =1+(3*I30+4*I31+5*I32+6*I33+7*I34)/I29 -> 1.000031352 | L36: Richland | M36: 90.2550000000 | N36: 202387.6048 | O36: 134255.4253 | P36: 43.1920326539 | Q36: 1.000037565
B37: k | C37: =$C$20*(1+(C28^2)/(2*$G$16*$G$15)+(C28^3*TAN($D$17))/(6*$G$16*$G$15^2)+(C28^4*(5+3*TAN($D$17)^2))/(24*$G$16^2*$G$15^2)) -> 1.000036721 | F37: dM | G37: =G35/G36 -> 1.734855567 | H37: =H35/H36 -> 5.820583607e-10 | I37: =I35/I36 -> 0 | L37: Sawyer | M37: 91.0700000000 | N37: 216713.2336 | O37: 120734.1631 | P37: 45.5400356873 | Q37: 1.000057346
B38: DE | C38: =(G17-C34)*SIN(C35) -> 11580.48257 | F38: M | G38: =I29+I37 -> -165902.1002 | L38: Taylor | M38: 90.2900000000 | N38: 187147.5744 | O38: 107746.7522 | P38: 45.1040159509 | Q38: 1.000059757
B39: East | C39: =D18+C38 -> 561580.4831 | F39: Mf | G39: =G22+G38 -> 16056211.94 | L39: Vernon | M39: 90.4700000000 | N39: 222504.4451 | O39: 47532.0602 | P39: 43.3430118583 | Q39: 1.000040816
B40: North | C40: =D19+C34+C38*TAN(C35/2) -> 263007.196 | F40: Iterative comps for latitude | G40: fa (radians) | H40: -Ga | I40: dG/df | J40: df | L40: Vilas | M40: 89.2920000000 | N40: 134417.0689 | O40: 50337.10916 | P40: 46.0440238726 | Q40: 1.000073014
F41: 1 | G41: =G39/(J17*G18) -> 0.7685877147 | H41: =$G$39-$J$17*($G$18*G41-$G$19*SIN(2*G41)+$G$20*SIN(4*G41)-$G$21*SIN(6*G41)) -> 52586.1544 | I41: =$J$17*($G$18-2*$G$19*COS(2*G41)+4*$G$20*COS(4*G41)-6*$G$21*COS(6*G41)) -> 20886781.48 | J41: =H41/I41 -> 0.002517676285 | L41: Walworth | M41: 88.3230000000 | N41: 232562.8651 | O41: 111088.2224 | P41: 42.4010063549 | Q41: 1.000036719
F42: 2 | G42: =G41+J41 -> 0.771105391 | H42: =$G$39-$J$17*($G$18*G42-$G$19*SIN(2*G42)+$G$20*SIN(4*G42)-$G$21*SIN(6*G42)) -> -0.6665523369 | I42: =$J$17*($G$18-2*$G$19*COS(2*G42)+4*$G$20*COS(4*G42)-6*$G$21*COS(6*G42)) -> 20887310.99 | J42: =H42/I42 -> -3.191183092e-08 | L42: Washburn | M42: 91.4700000000 | N42: 234086.8682 | O42: 188358.6057 | P42: 45.5740391400 | Q42: 1.000047538
F43: 3 | G43: =G42+J42 -> 0.7711053591 | H43: =$G$39-$J$17*($G$18*G43-$G$19*SIN(2*G43)+$G$20*SIN(4*G43)-$G$21*SIN(6*G43)) -> 0 | I43: =$J$17*($G$18-2*$G$19*COS(2*G43)+4*$G$20*COS(4*G43)-6*$G$21*COS(6*G43)) -> 20887310.99 | J43: =H43/I43 -> 0 | L43: Waushara | M43: 89.1430000000 | N43: 120091.4402 | O43: 45069.75873 | P43: 44.0650198565 | Q43: 1.00003921
F44: 4 | G44: =G43+J43 -> 0.7711053591 | H44: =$G$39-$J$17*($G$18*G44-$G$19*SIN(2*G44)+$G$20*SIN(4*G44)-$G$21*SIN(6*G44)) -> 0 | I44: =$J$17*($G$18-2*$G$19*COS(2*G44)+4*$G$20*COS(4*G44)-6*$G$21*COS(6*G44)) -> 20887310.99 | J44: =H44/I44 -> 0 | L44: Wood | M44: 90.0000000000 | N44: 208483.6173 | O44: 134589.754 | P44: 44.2145343690 | Q44: 1.000042121
F45: Lat (f) | G45: =G44+J44 -> 0.7711053591 | H45: radians | I45: =FormatAngle(DDtoDMS(DEGREES(G45)),6) -> +44°10'51.897493"
F46: k | G46: =$C$20*(1+(G38^2)/(2*$G$16*$G$15)+(G38^3*TAN($D$17))/(6*$G$16*$G$15^2)+(G38^4*(5+3*TAN($D$17)^2))/(24*$G$16^2*$G$15^2)) -> 1.000067649

Sheet WisCRS_Cylindric
A1: WCCS Transverse Mercator Cylindric Systems
B3: Units | C3: =Comps!C4 -> Survey Ft
B4: County | C4: =Comps!C21 -> Polk
B6: Direct Conversion | E6: Inverse Conversion
B7: Lat (f) | C7: =Comps!D21 -> 45.14 | D7: d.ms | E7: N | F7: =Comps!F22 -> 120000 | G7: =C3 -> Survey Ft
B8: Long (l) | C8: =Comps!E21 -> 92.13 | D8: d.ms | E8: E | F8: =Comps!G22 -> 750000 | G8: =C3 -> Survey Ft
B9: N | C9: =C53 -> 208919.2621 | D9: =C3 -> Survey Ft | E9: Lat (f) | F9: =H55 -> +44°59'05.708779"
B10: E | C10: =C54 -> 572350.9953 | D10: =C3 -> Survey Ft | E10: Long (l) | F10: =H56 -> +91°31'54.973118"
B11: g | C11: =C62 -> +0°17'44.980" | E11: g | F11: =H64 -> +0°46'43.134"
B12: k | C12: =C63 -> 1.000056543 | E12: k | F12: =H65 -> 1.000136131
A14: Zone Parameters | H14: GRS80 Ellipsoid
B15: County | C15: =VLOOKUP($C$4,WisCRS_Cyl,1,FALSE) -> Polk | H15: a | I15: ='GRS80_&_Units'!C5*VLOOKUP(C3,Units,2,FALSE) -> 20925604.47 | K15: County Parameters - WisCRS Cylindric
B16: lo | C16: =VLOOKUP($C$4,WisCRS_Cyl,2,FALSE) -> 92.3800000000 | D16: =RADIANS(DMStoDD(C16)) -> 1.616756664 | E16: radians | H16: b | I16: ='GRS80_&_Units'!C6*VLOOKUP(C3,Units,2,FALSE) -> 20855444.88 | L16: Long (Cen Mer) | M16: Lat (Origin) | N16: False Easting | O16: False Northing | P16: Scale
B17: fo | C17: =VLOOKUP($C$4,WisCRS_Cyl,3,FALSE) -> 44.3940000000 | D17: =RADIANS(DMStoDD(C17)) -> 0.7794834365 | E17: radians | H17: f | I17: =(I15-I16)/I15 -> 0.003352810681 | K17: County | L17: (d.ms) | M17: (d.ms) | N17: (Meters) | O17: (Meters) | P17: (Cen Mer)
B18: ko | C18: =VLOOKUP($C$4,WisCRS_Cyl,6,FALSE) -> 1.000043385 | H18: e | I18: =SQRT((I15^2-I16^2)/I15^2) -> 0.08181919104 | K18: Adams | L18: 90.0000000000 | M18: 43.2200000000 | N18: 147218.6942 | O18: 0.0037 | P18: 1.000036528
B19: No | C19: =VLOOKUP($C$4,WisCRS_Cyl,5,FALSE) -> 0.0059 | D19: =C19*VLOOKUP(C3,Units,2,FALSE) -> 0.01935691667 | E19: =C3 -> Survey Ft | H19: e' | I19: =SQRT((I15^2-I16^2)/I16^2) -> 0.08209443815 | K19: Ashland | L19: 90.3720000000 | M19: 45.4222000000 | N19: 172821.9461 | O19: 0.0017 | P19: 1.000049568
B20: Eo | C20: =VLOOKUP($C$4,WisCRS_Cyl,4,FALSE) -> 141732.2823 | D20: =C20*VLOOKUP(C3,Units,2,FALSE) -> 464999.9962 | E20: =C3 -> Survey Ft | K20: Barron | L20: 91.5100000000 | M20: 45.0800000000 | N20: 93150 | O20: 0.0029 | P20: 1.000048666
K21: Brown | L21: 88.0000000000 | M21: 43.0000000000 | N21: 31600 | O21: 4600 | P21: 1.00002
K22: Buffalo | L22: 91.4750000000 | M22: 43.2853000000 | N22: 175260.3502 | O22: 0.0048 | P22: 1.000038278
A23: Zone Constants | K23: Calumet | L23: 88.3000000000 | M23: 42.4310000000 | N23: 244754.8893 | O23: 0.0049 | P23: 1.000028657
B24: n | C24: =(I15-I16)/(I15+I16) -> 0.001679220395 | K24: Clark | L24: 90.4230000000 | M24: 43.3600000000 | N24: 199949.1989 | O24: 0.0086 | P24: 1.0000463
B25: r | C25: =I15*(1-C24)*(1-C24^2)*(1+9*C24^2/4+225*C24^4/64) -> 20890539.41 | D25: =C3 -> Survey Ft | K25: Dodge | L25: 88.4630000000 | M25: 41.2820000000 | N25: 263347.7263 | O25: 0.0076 | P25: 1.000034642
B26: u2 | C26: =-3*C24/2+9*C24^3/16 -> -0.002518827928 | E26: v2 | F26: =3*C24/2-27*C24^3/32 -> 0.002518826597 | K26: Door | L26: 87.1620000000 | M26: 44.2400000000 | N26: 158801.1176 | O26: 0.0023 | P26: 1.000018752
B27: u4 | C27: =15*C24^2/16-15*C24^4/32 -> 2.643541086e-06 | E27: v4 | F27: =21*C24^2/16-55*C24^4/32 -> 3.700949072e-06 | K27: Douglas | L27: 91.5500000000 | M27: 45.5300000000 | N27: 59131.3183 | O27: 0.0041 | P27: 1.000038542
B28: u6 | C28: =-35*C24^3/48 -> -3.45262895e-09 | E28: v6 | F28: =151*C24^3/96 -> 7.447813877e-09 | K28: Dunn | L28: 91.5340000000 | M28: 44.2430000000 | N28: 51816.104 | O28: 0.003 | P28: 1.000041032
B29: u8 | C29: =315*C24^4/512 -> 4.891830424e-12 | E29: v8 | F29: =1097*C24^4/512 -> 1.703599357e-11 | K29: Florence | L29: 88.0830000000 | M29: 45.2620000000 | N29: 133502.6683 | O29: 0.0063 | P29: 1.000055209
B30: U0 | C30: =2*(C26-2*C27+3*C28-4*C29) -> -0.005048250776 | E30: V0 | F30: =2*(F26-2*F27+3*F28-4*F29) -> 0.005022893948 | K30: Fond du Lac | L30: 88.3000000000 | M30: 42.4310000000 | N30: 244754.8893 | O30: 0.0049 | P30: 1.000028657
B31: U2 | C31: =8*(C27-4*C28+10*C29) -> 2.125920416e-05 | E31: V2 | F31: =8*(F27-4*F28+10*F29) -> 2.937062541e-05 | K31: Forest | L31: 88.3800000000 | M31: 44.0020000000 | N31: 275844.5533 | O31: 0.0157 | P31: 1.0000673
B32: U4 | C32: =32*(C28-6*C29) -> -1.114233578e-07 | E32: V4 | F32: =32*(F28-6*F29) -> 2.350591333e-07 | K32: Grant | L32: 90.4800000000 | M32: 41.2440000000 | N32: 242316.4841 | O32: 0.01 | P32: 1.000034945
B33: U6 | C33: =128*C29 -> 6.261542943e-10 | E33: V6 | F33: =128*F29 -> 2.180607177e-09 | K33: Iowa | L33: 90.0940000000 | M33: 42.3220000000 | N33: 113081.0261 | O33: 0.0045 | P33: 1.000039496
B34: wo | C34: =D17+SIN(D17)*COS(D17)*(C30+C31*COS(D17)^2+C32*COS(D17)^4+C33*COS(D17)^6) -> 0.7769648508 | K34: Iron | L34: 90.1520000000 | M34: 45.2600000000 | N34: 220980.4419 | O34: 0.0085 | P34: 1.000067715
B35: So | C35: =C18*C34*C25 -> 16231919.02 | D35: =C3 -> Survey Ft | K35: Jackson | L35: 90.5039467470 | M35: 44.1512006460 | N35: 27000 | O35: 25000 | P35: 1.0000353
K36: Jefferson | L36: 88.4630000000 | M36: 41.2820000000 | N36: 263347.7263 | O36: 0.0076 | P36: 1.000034642
A37: Direct Conversion | C37: d.ms | F37: Inverse Conversion | K37: Juneau | L37: 90.0000000000 | M37: 43.2200000000 | N37: 147218.6942 | O37: 0.0037 | P37: 1.000036528
B38: Lat (f) | C38: =C7 -> 45.14 | D38: =RADIANS(DMStoDD(C38)) -> 0.7894705983 | E38: radians | G38: N | H38: =F7 -> 120000 | I38: =C3 -> Survey Ft | K38: Kenosha | L38: 87.5340000000 | M38: 42.1300000000 | N38: 185928.3728 | O38: 0.0009 | P38: 1.000026065
B39: Long (l) | C39: =C8 -> 92.13 | D39: =RADIANS(DMStoDD(C39)) -> 1.609484459 | E39: radians | G39: E | H39: =F8 -> 750000 | I39: =C3 -> Survey Ft | K39: Kewaunee | L39: 87.3300000000 | M39: 43.1600000000 | N39: 79857.76143 | O39: 0.0012 | P39: 1.00002337
B40: L | C40: =(D39-D16)*COS(D38) -> -0.00512124166 | G40: w | H40: =(H38-D19+C35)/(C18*C25) -> 0.7827088276 | K40: LaCrosse | L40: 91.1900000000 | M40: 43.2704000000 | N40: 130454.6598 | O40: 0.0033 | P40: 1.000031998
B41: w | C41: =D38+SIN(D38)*COS(D38)*(C30+C31*COS(D38)^2+C32*COS(D38)^4+C33*COS(D38)^6) -> 0.7869518143 | G41: ff | H41: =H40+(SIN(H40)*COS(H40))*(F30+F31*COS(H40)^2+F32*COS(H40)^4+F33*COS(H40)^6) -> 0.7852276502 | K41: Lincoln | L41: 89.4400000000 | M41: 44.5040000000 | N41: 116129.0323 | O41: 0.0058 | P41: 1.0000599
B42: S | C42: =C18*C41*C25 -> 16440561.13 | D42: =C3 -> Survey Ft | G42: tf | H42: =TAN(H41) -> 0.9996590317 | K42: Manitowoc | L42: 87.3300000000 | M42: 43.1600000000 | N42: 79857.7614 | O42: 0.0012 | P42: 1.00002337
B43: t | C43: =TAN(D38) -> 1.00817822 | G43: hf2 | H43: =I19^2*COS(H41)^2 -> 0.003370897561 | K43: Marinette | L43: 87.4240000000 | M43: 44.4130000000 | N43: 238658.8794 | O43: 0.0032 | P43: 1.000023498
B44: h2 | C44: =I19^2*COS(D38)^2 -> 0.003342302529 | G44: Rf | H44: =(C18*I15)/SQRT(1-I18^2*SIN(H41)^2) -> 20961611 | I44: =C3 -> Survey Ft | K44: Menominee | L44: 88.2500000000 | M44: 44.4300000000 | N44: 105461.0121 | O44: 0.0023 | P44: 1.00003625
B45: R | C45: =(C18*I15)/SQRT(1-I18^2*SIN(D38)^2) -> 20961909.7 | D45: =C3 -> Survey Ft | G45: Q | H45: =(H39-D20)/H44 -> 0.01359628341 | K45: Milwaukee | L45: 87.5340000000 | M45: 42.1300000000 | N45: 185928.3728 | O45: 0.0009 | P45: 1.000026065
B46: A1 | C46: =-C45 -> -20961909.7 | G46: B2 | H46: =-H42/2*(1+H43) -> -0.5015143899 | K46: Oconto | L46: 87.5430000000 | M46: 44.2350000000 | N46: 182880.3676 | O46: 0.0033 | P46: 1.000023687
B47: A2 | C47: =C45*C43/2 -> 10566670.41 | G47: B3 | H47: =-(1+2*H42^2+H43)/6 -> -0.5003345428 | K47: Outagamie | L47: 88.3000000000 | M47: 42.4310000000 | N47: 244754.8893 | O47: 0.0049 | P47: 1.000028657
B48: A3 | C48: =(1-C43^2+C44)/6 -> -0.002180170234 | G48: B4 | H48: =-(5+3*H42^2+H43*(1-9*H42^2)-4*H43^2)/12 -> -0.6642468826 | K48: Ozaukee | L48: 87.5340000000 | M48: 42.1300000000 | N48: 185928.3728 | O48: 0.0009 | P48: 1.000026065
B49: A4 | C49: =(5-C43^2+C44*(9+4*C44))/12 -> 0.3344751736 | G49: B5 | H49: =(5+28*H42^2+24*H42^4+H43*(6+8*H42^2))/120 -> 0.4749613915 | K49: Polk | L49: 92.3800000000 | M49: 44.3940000000 | N49: 141732.2823 | O49: 0.0059 | P49: 1.000043385
B50: A5 | C50: =(5-18*C43^2+C43^4+C44*(14-58*C43^2))/120 -> -0.1034395707 | G50: B6 | H50: =(61+90*H42^2+45*H42^4+H43*(46-252*H42^2-90*H42^4))/360 -> 0.5413347231 | K50: Price | L50: 90.2920000000 | M50: 44.3320000000 | N50: 227990.8546 | O50: 0.0109 | P50: 1.000064955
B51: A6 | C51: =(61-58*C43^2+C43^4+C44*(270-330*C43^2))/360 -> 0.007949753241 | G51: B7 | H51: =-(61+662*H42^2+1320*H42^4+720*H42^6)/5040 -> -0.5474756973 | K51: Racine | L51: 87.5340000000 | M51: 42.1300000000 | N51: 185928.3728 | O51: 0.0009 | P51: 1.000026065
B52: A7 | C52: =(61-479*C43^2+179*C43^4-C43^6)/5040 -> -0.04801369542 | G52: L | H52: =H45*(1+H45^2*(H47+H45^2*(H49+H51*H45^2))) -> 0.01359502609 | K52: Rock | L52: 89.0420000000 | M52: 41.5640000000 | N52: 146304.2926 | O52: 0.0068 | P52: 1.000033731
B53: N | C53: =C42-C35+D19+C47*C40^2*(1+C40^2*(C49+C51*C40^2)) -> 208919.2621 | D53: =C3 -> Survey Ft | G53: Lat (f) | H53: =H41+H46*H45^2*(1+H45^2*(H48+H50*H45^2)) -> 0.7851349521 | K53: Rusk | L53: 91.0400000000 | M53: 43.5510000000 | N53: 250546.1013 | O53: 0.0234 | P53: 1.000049598
B54: E | C54: =D20+C46*C40*(1+C40^2*(C48+C40^2*(C50+C52*C40^2))) -> 572350.9953 | D54: =C3 -> Survey Ft | G54: Long (l) | H54: =D16-(H52/COS(H41)) -> 1.597533671 | K54: Sauk | L54: 89.5400000000 | M54: 42.4910000000 | N54: 185623.5716 | O54: 0.0051 | P54: 1.000037387
G55: Lat (f) | H55: =FormatAngle(DDtoDMS(DEGREES(H53)),6) -> +44°59'05.708779" | K55: Shawano | L55: 88.3620000000 | M55: 44.0210000000 | N55: 262433.3253 | O55: 0.0096 | P55: 1.000032144
B56: C1 | C56: =-C43 -> -1.00817822 | G56: Long (l) | H56: =FormatAngle(DDtoDMS(DEGREES(H54)),6) -> +91°31'54.973118" | K56: Sheboygan | L56: 87.3300000000 | M56: 43.1600000000 | N56: 79857.7614 | O56: 0.0012 | P56: 1.00002337
B57: C3 | C57: =(1+3*C44+2*C44^2)/3 -> 0.3366830832 | K57: St. Croix | L57: 92.3800000000 | M57: 44.0210000000 | N57: 165506.7302 | O57: 0.0103 | P57: 1.00003818
B58: C5 | C58: =(2-C43^2)/15 -> 0.0655717784 | G58: D1 | H58: =H42 -> 0.9996590317 | K58: Trempealeau | L58: 91.2200000000 | M58: 43.0940000000 | N58: 256946.9138 | O58: 0.0041 | P58: 1.000036154
B59: F2 | C59: =(1+C44)/2 -> 0.5016711513 | G59: D3 | H59: =-(1+H42^2-H43-2*H43^2)/3 -> -0.6653081854 | K59: Washington | L59: 88.0350000000 | M59: 42.5505000000 | N59: 120091.4415 | O59: 0.003 | P59: 1.00003738
B60: F4 | C60: =(5-4*C43^2+C44*(9-24*C43^2))/12 -> 0.07357123043 | G60: D5 | H60: =(2+5*H42^2+3*H42^4)/15 -> 0.666166758 | K60: Waukesha | L60: 88.1330000000 | M60: 42.3410000000 | N60: 208788.418 | O60: 0.0034 | P60: 1.000034618
B61: g | C61: =C56*C40*(1+C40^2*(C57+C58*C40^2)) -> 0.005163169895 | D61: radians | G61: G2 | H61: =(1+H43)/2 -> 0.5016854488 | K61: Waupaca | L61: 88.4900000000 | M61: 43.2513000000 | N61: 185013.9709 | O61: 0.007 | P61: 1.000033364
B62: g | C62: =FormatAngle(DDtoDMS(DEGREES(C61)),3) -> +0°17'44.980" | G62: G4 | H62: =(1+5*H43)/12 -> 0.08473787398 | K62: Winnebago | L62: 88.3000000000 | M62: 42.4310000000 | N62: 244754.8893 | O62: 0.0049 | P62: 1.000028657
B63: k | C63: =C18*(1+C59*C40^2*(1+C60*C40^2)) -> 1.000056543 | G63: g | H63: =H58*H45*(1+H45^2*(H59+H60*H45^2)) -> 0.0135899762
G64: g | H64: =FormatAngle(DDtoDMS(DEGREES(H63)),3) -> +0°46'43.134"
G65: k | H65: =C18*(1+H61*H45^2*(1+H62*H45^2)) -> 1.000136131

Sheet WCCS_Conic
A1: WCCS Conic Systems
B3: Units | C3: =Comps!C4 -> Survey Ft
B4: County | C4: =Comps!C12 -> Sawyer
B6: Direct Conversion | E6: Inverse Conversion
B7: Lat (f) | C7: =Comps!D12 -> 45.4 | D7: d.ms | E7: N | F7: =Comps!F13 -> 200000 | G7: =C3 -> Survey Ft
B8: Long (l) | C8: =Comps!E12 -> 90.43 | D8: d.ms | E8: E | F8: =Comps!G13 -> 275000 | G8: =C3 -> Survey Ft
B9: N | C9: =C41 -> 311237.5825 | D9: =E3 -> 0 | E9: Lat (f) | F9: =H43 -> +45°20'58.649597"
B10: E | C10: =C42 -> 813272.6538 | D10: =E3 -> 0 | E10: Long (l) | F10: =H42 -> +92°48'44.722434"
B11: g | C11: =C39 -> +0°17'14.104" | E11: g | F11: =H44 -> -1°13'03.969"
B12: k | C12: =C40 -> 1.000003312 | E12: k | F12: =H45 -> 1.000040903
A14: Zone Parameters | K14: County Parameters - Conic | T14: Enlarged Ellipsoid
B15: County | C15: =VLOOKUP($C$4,WisCone,1,FALSE) -> Sawyer | L15: Elev | M15: Geoid Ht | N15: Long O | O15: Lat b | P15: False E | Q15: False N | R15: N Std Par | S15: S Std Par | T15: a | U15: b
A16: fs | B16: Std Par S | C16: =VLOOKUP($C$4,WisCone,9,FALSE) -> 45.431001 | D16: =RADIANS(DMStoDD(C16)) -> 0.7979548862 | E16: radians | G16: Enlarged Ellipsoid | K16: County | L16: (m) | M16: (m) | N16: (d.ms) | O16: (d.ms) | P16: (m) | Q16: (m) | R16: (d.ms) | S16: (d.ms) | T16: (m) | U16: (m)
A17: fn | B17: Std Par N | C17: =VLOOKUP($C$4,WisCone,8,FALSE) -> 46.045 | D17: =RADIANS(DMStoDD(C17)) -> 0.8042574156 | E17: radians | G17: a | H17: =VLOOKUP($C$4,WisCone,10,FALSE)*VLOOKUP(C3,Units,2,FALSE) -> 20926908.44 | I17: =C3 -> Survey Ft | K17: Bayfield | L17: 304.801 | M17: -30.45 | N17: 91.091 | O17: 45.2 | P17: 228600.4572 | Q17: 0 | R17: 46.553 | S17: 46.245 | T17: ='GRS80_&_Units'!$C$5+L17+M17 -> 6378411.351 | U17: ='GRS80_&_Units'!$C$6+L17+M17 -> 6357026.665
A18: lo | B18: Origin Long | C18: =VLOOKUP($C$4,WisCone,4,FALSE) -> 91.07 | D18: =RADIANS(DMStoDD(C18)) -> 1.590285837 | E18: radians | G18: b | H18: =VLOOKUP($C$4,WisCone,11,FALSE)*VLOOKUP(C3,Units,2,FALSE) -> 20856748.85 | I18: =C3 -> Survey Ft | K18: Burnett | L18: 304.8 | M18: -26.84 | N18: 92.2728 | O18: 45.215 | P18: 64008.12802 | Q18: 0 | R18: 46.05 | S18: 45.425 | T18: ='GRS80_&_Units'!$C$5+L18+M18 -> 6378414.96 | U18: ='GRS80_&_Units'!$C$6+L18+M18 -> 6357030.274
A19: fb | B19: Origin Lat | C19: =VLOOKUP($C$4,WisCone,5,FALSE) -> 44.485 | D19: =RADIANS(DMStoDD(C19)) -> 0.7821499117 | E19: radians | G19: f | H19: =(H17-H18)/H17 -> 0.003352601765 | K19: Chippewa | L19: 304.8 | M19: -29.26 | N19: 91.174 | O19: 44.3452 | P19: 60045.72009 | Q19: 0 | R19: 45.083 | S19: 44.485001 | T19: ='GRS80_&_Units'!$C$5+L19+M19 -> 6378412.54 | U19: ='GRS80_&_Units'!$C$6+L19+M19 -> 6357027.854
A20: Nb | B20: Origin N | C20: =VLOOKUP($C$4,WisCone,7,FALSE) -> 0 | D20: =C20*VLOOKUP(C3,Units,2,FALSE) -> 0 | E20: =C3 -> Survey Ft | G20: e | H20: =SQRT((H17^2-H18^2)/H17^2) -> 0.08181664618 | K20: Columbia | L20: 274.321 | M20: -34.99 | N20: 89.234 | O20: 42.273 | P20: 169164.3383 | Q20: 0 | R20: 43.353 | S20: 43.200001 | T20: ='GRS80_&_Units'!$C$5+L20+M20 -> 6378376.331 | U20: ='GRS80_&_Units'!$C$6+L20+M20 -> 6356991.645
A21: Eo | B21: Origin E | C21: =VLOOKUP($C$4,WisCone,6,FALSE) -> 216713.2334 | D21: =C21*VLOOKUP(C3,Units,2,FALSE) -> 710999.9999 | E21: =C3 -> Survey Ft | G21: e' | H21: =SQRT((H17^2-H18^2)/H18^2) -> 0.08209186752 | K21: Crawford | L21: 274.321 | M21: -32.29 | N21: 90.562 | O21: 42.43 | P21: 113690.6274 | Q21: 0 | R21: 43.203 | S21: 43.033 | T21: ='GRS80_&_Units'!$C$5+L21+M21 -> 6378379.031 | U21: ='GRS80_&_Units'!$C$6+L21+M21 -> 6356994.345
K22: Dane | L22: 304.801 | M22: -34.18 | N22: 89.252 | O22: 41.45 | P22: 247193.2944 | Q22: 0 | R22: 43.135 | S22: 42.543 | T22: ='GRS80_&_Units'!$C$5+L22+M22 -> 6378407.621 | U22: ='GRS80_&_Units'!$C$6+L22+M22 -> 6357022.935
A23: Zone Constants | K23: Eau Claire | L23: 274.321 | M23: -30.94 | N23: 91.172 | O23: 44.025 | P23: 120091.4402 | Q23: 0 | R23: 45.005 | S23: 44.435 | T23: ='GRS80_&_Units'!$C$5+L23+M23 -> 6378380.381 | U23: ='GRS80_&_Units'!$C$6+L23+M23 -> 6356995.695
C24: Q | D24: W | G24: fo | H24: =ASIN((LN(D26*COS(D16)/(D25*COS(D17))))/(C26-C25)) -> 0.8011078811 | I24: radians | K24: Green | L24: 304.801 | M24: -33.32 | N24: 89.502 | O24: 42.133 | P24: 170078.7402 | Q24: 0 | R24: 42.472 | S24: 42.291001 | T24: ='GRS80_&_Units'!$C$5+L24+M24 -> 6378408.481 | U24: ='GRS80_&_Units'!$C$6+L24+M24 -> 6357023.795
B25: South (Qs) | C25: =Q(H20,D16) -> 0.8944464815 | D25: =W(H20,D16) -> 0.9982830124 | H25: =FormatAngle(DDtoDMS(DEGREES(H24)),3) -> +45°54'00.362" | I25: Central Latitude | K25: Green Lake | L25: 274.321 | M25: -35.72 | N25: 89.143 | O25: 43.054 | P25: 150876.3018 | Q25: 0 | R25: 43.565 | S25: 43.400001 | T25: ='GRS80_&_Units'!$C$5+L25+M25 -> 6378375.601 | U25: ='GRS80_&_Units'!$C$6+L25+M25 -> 6356990.915
B26: North (Qn) | C26: =Q(H20,D17) -> 0.9034735602 | D26: =W(H20,D17) -> 0.998261892 | G26: K | H26: =(H17*COS(D16)*EXP(C25*SIN(H24)))/(D25*SIN(H24)) -> 38741048.16 | I26: =C3 -> Survey Ft | K26: Jackson | L26: 304.81 | M26: -32.65 | N26: 90.442 | O26: 43.474 | P26: 125882.6518 | Q26: 0 | R26: 44.251 | S26: 44.095001 | T26: ='GRS80_&_Units'!$C$5+L26+M26 -> 6378409.16 | U26: ='GRS80_&_Units'!$C$6+L26+M26 -> 6357024.474
B27: Grid Origin (Qb) | C27: =Q(H20,D19) -> 0.8720641152 | G27: Rb | H27: =H26/(EXP(C27*SIN(H24))) -> 20710617.16 | I27: =C3 -> Survey Ft | K27: Lafayette | L27: 304.801 | M27: -33.32 | N27: 89.502 | O27: 42.133 | P27: 170078.7402 | Q27: 0 | R27: 42.472 | S27: 42.291001 | T27: ='GRS80_&_Units'!$C$5+L27+M27 -> 6378408.481 | U27: ='GRS80_&_Units'!$C$6+L27+M27 -> 6357023.795
B28: Central (Qo) | C28: =Q(H20,H24) -> 0.8989551125 | D28: =W(H20,H24) -> 0.9982724454 | G28: Ro | H28: =H26/(EXP(C28*SIN(H24))) -> 20314507.98 | I28: =C3 -> Survey Ft | K28: Langlade | L28: 457.201 | M28: -34.08 | N28: 89.02 | O28: 44.1225 | P28: 198425.1968 | Q28: 0 | R28: 45.183 | S28: 45 | T28: ='GRS80_&_Units'!$C$5+L28+M28 -> 6378560.121 | U28: ='GRS80_&_Units'!$C$6+L28+M28 -> 6357175.435
G29: ko | H29: =(D28*TAN(H24)*H28)/(H17) -> 0.9999950509 | K29: Marathon | L29: 396.24 | M29: -32.64 | N29: 89.4612 | O29: 44.242 | P29: 74676.14935 | Q29: 0 | R29: 45.0323 | S29: 44.444301 | T29: ='GRS80_&_Units'!$C$5+L29+M29 -> 6378500.6 | U29: ='GRS80_&_Units'!$C$6+L29+M29 -> 6357115.914
G30: No | H30: =H27+D20-H28 -> 396109.1737 | I30: =C3 -> Survey Ft | K30: Marquette | L30: 274.321 | M30: -35.72 | N30: 89.143 | O30: 43.054 | P30: 150876.3018 | Q30: 0 | R30: 43.565 | S30: 43.400001 | T30: ='GRS80_&_Units'!$C$5+L30+M30 -> 6378375.601 | U30: ='GRS80_&_Units'!$C$6+L30+M30 -> 6356990.915
K31: Monroe | L31: 335.281 | M31: -33.29 | N31: 90.383 | O31: 42.541 | P31: 204521.2091 | Q31: 0 | R31: 44.094 | S31: 43.502 | T31: ='GRS80_&_Units'!$C$5+L31+M31 -> 6378438.991 | U31: ='GRS80_&_Units'!$C$6+L31+M31 -> 6357054.305
K32: Oneida | L32: 487.7 | M32: -30.84 | N32: 89.324 | O32: 45.111 | P32: 70104.14021 | Q32: 0 | R32: 45.503 | S32: 45.340001 | T32: ='GRS80_&_Units'!$C$5+L32+M32 -> 6378593.86 | U32: ='GRS80_&_Units'!$C$6+L32+M32 -> 6357209.174
A33: Direct Conversion | C33: d.ms | F33: Inverse Conversion | K33: Pepin | L33: 274.321 | M33: -30.05 | N33: 92.134 | O33: 43.5143 | P33: 167640.3353 | Q33: 0 | R33: 44.45 | S33: 44.312001 | T33: ='GRS80_&_Units'!$C$5+L33+M33 -> 6378381.271 | U33: ='GRS80_&_Units'!$C$6+L33+M33 -> 6356996.585
B34: Lat (f) | C34: =C7 -> 45.4 | D34: =RADIANS(DMStoDD(C34)) -> 0.7970336917 | E34: radians | G34: N | H34: =F7 -> 200000 | I34: =C3 -> Survey Ft | K34: Pierce | L34: 274.321 | M34: -30.05 | N34: 92.134 | O34: 43.5143 | P34: 167640.3353 | Q34: 0 | R34: 44.45 | S34: 44.312001 | T34: ='GRS80_&_Units'!$C$5+L34+M34 -> 6378381.271 | U34: ='GRS80_&_Units'!$C$6+L34+M34 -> 6356996.585
B35: Long (l) | C35: =C8 -> 90.43 | D35: =RADIANS(DMStoDD(C35)) -> 1.58330452 | E35: radians | G35: E | H35: =F8 -> 275000 | I35: =C3 -> Survey Ft | K35: Portage | L35: 341.377 | M35: -34 | N35: 89.3 | O35: 43.58 | P35: 56388.1128 | Q35: 0 | R35: 44.36 | S35: 44.110001 | T35: ='GRS80_&_Units'!$C$5+L35+M35 -> 6378444.377 | U35: ='GRS80_&_Units'!$C$6+L35+M35 -> 6357059.691
B36: Q | C36: =Q(H20,D34) -> 0.8931319891 | G36: R' | H36: =H27-H34+D20 -> 20510617.16 | I36: =C3 -> Survey Ft | K36: Richland | L36: 304.801 | M36: -33.71 | N36: 90.255 | O36: 42.065 | P36: 202387.6048 | Q36: 0 | R36: 43.301 | S36: 43.083001 | T36: ='GRS80_&_Units'!$C$5+L36+M36 -> 6378408.091 | U36: ='GRS80_&_Units'!$C$6+L36+M36 -> 6357023.405
B37: R | C37: =H26/(EXP(C36*SIN(H24))) -> 20399635.94 | G37: E' | H37: =H35-D21 -> -435999.9999 | I37: =C3 -> Survey Ft | K37: Sawyer | L37: 426.721 | M37: -29.27 | N37: 91.07 | O37: 44.485 | P37: 216713.2334 | Q37: 0 | R37: 46.045 | S37: 45.431001 | T37: ='GRS80_&_Units'!$C$5+L37+M37 -> 6378534.451 | U37: ='GRS80_&_Units'!$C$6+L37+M37 -> 6357149.765
B38: g | C38: =(D18-D35)*SIN(H24) -> 0.00501347586 | D38: radians | G38: g | H38: =ATAN(H37/H36) -> -0.02125408233 | I38: radians | K38: Taylor | L38: 426.721 | M38: -30.8 | N38: 90.29 | O38: 44.123 | P38: 187147.5743 | Q38: 0 | R38: 45.18 | S38: 45.032 | T38: ='GRS80_&_Units'!$C$5+L38+M38 -> 6378532.921 | U38: ='GRS80_&_Units'!$C$6+L38+M38 -> 6357148.235
B39: g | C39: =FormatAngle(DDtoDMS(DEGREES(C38)),3) -> +0°17'14.104" | G39: R | H39: =SQRT(H36^2+H37^2) -> 20515250.72 | K39: Vernon | L39: 304.801 | M39: -32.86 | N39: 90.47 | O39: 43.085 | P39: 222504.445 | Q39: 0 | R39: 43.41 | S39: 43.280001 | T39: ='GRS80_&_Units'!$C$5+L39+M39 -> 6378408.941 | U39: ='GRS80_&_Units'!$C$6+L39+M39 -> 6357024.255
B40: k | C40: =SQRT((1-H20^2*SIN(D34)^2))*(C37*SIN(H24))/(H17*COS(D34)) -> 1.000003312 | G40: Q | H40: =(LN(H26/H39))/(SIN(H24)) -> 0.8852622276 | K40: Vilas | L40: 518.161 | M40: -30.99 | N40: 89.292 | O40: 45.373 | P40: 134417.0688 | Q40: 0 | R40: 46.133 | S40: 45.555001 | T40: ='GRS80_&_Units'!$C$5+L40+M40 -> 6378624.171 | U40: ='GRS80_&_Units'!$C$6+L40+M40 -> 6357239.485
B41: N | C41: =H27+D20-C37*COS(C38) -> 311237.5825 | D41: =C3 -> Survey Ft | G41: Long | H41: =D18-(H38/SIN(H24)) -> 1.619882366 | I41: radians | K41: Walworth | L41: 274.321 | M41: -33.91 | N41: 88.323 | O41: 41.401 | P41: 232562.8651 | Q41: 0 | R41: 42.45 | S41: 42.352001 | T41: ='GRS80_&_Units'!$C$5+L41+M41 -> 6378377.411 | U41: ='GRS80_&_Units'!$C$6+L41+M41 -> 6356992.725
B42: E | C42: =D21+C37*SIN(C38) -> 813272.6538 | D42: =C3 -> Survey Ft | G42: Long (l) | H42: =FormatAngle(DDtoDMS(DEGREES(H41)),6) -> +92°48'44.722434" | K42: Washbum | L42: 365.761 | M42: -28.17 | N42: 91.47 | O42: 44.16 | P42: 234086.8681 | Q42: 0 | R42: 46.09 | S42: 45.462001 | T42: ='GRS80_&_Units'!$C$5+L42+M42 -> 6378474.591 | U42: ='GRS80_&_Units'!$C$6+L42+M42 -> 6357089.905
G43: Lat (f) | H43: =H58 -> +45°20'58.649597" | K43: Waushara | L43: 304.801 | M43: -35.83 | N43: 89.143 | O43: 43.423 | P43: 120091.4402 | Q43: 0 | R43: 44.151 | S43: 43.583 | T43: ='GRS80_&_Units'!$C$5+L43+M43 -> 6378405.971 | U43: ='GRS80_&_Units'!$C$6+L43+M43 -> 6357021.285
G44: g | H44: =FormatAngle(DDtoDMS(DEGREES(H38)),3) -> -1°13'03.969" | K44: Wood | L44: 335.281 | M44: -34.63 | N44: 90 | O44: 43.0905 | P44: 208483.617 | Q44: 0 | R44: 44.324 | S44: 44.105 | T44: ='GRS80_&_Units'!$C$5+L44+M44 -> 6378437.651 | U44: ='GRS80_&_Units'!$C$6+L44+M44 -> 6357052.965
G45: k | H45: =SQRT(1-H20^2*SIN(I52)^2)*(H39*SIN(H24)/(H17*COS(I52))) -> 1.000040903
G47: Latitude comps - iterative
H48: f | I48: f (radians) | J48: f1 | K48: f2 | L48: (-f1/f2)
G49: initial | H49: =(EXP(2*H40)-1)/(EXP(2*H40)+1) -> 0.7090457601 | I49: =ASIN(H49) -> 0.7881440672 | J49: =Q($H$20,I49)-$H$40 -> -0.00475166165 | K49: =1/(1-H49^2)-$H$20^2/(1-$H$20^2*H49^2) -> 2.004327645 | L49: =-J49/K49 -> 0.002370701049
G50: 1 | H50: =H49+L49 -> 0.7114164612 | I50: =ASIN(H50) -> 0.791511697 | J50: =Q($H$20,I50)-$H$40 -> 1.620749024e-05 | K50: =1/(1-H50^2)-$H$20^2/(1-$H$20^2*H50^2) -> 2.018039494 | L50: =-J50/K50 -> -8.031304783e-06
G51: 2 | H51: =H50+L50 -> 0.7114084299 | I51: =ASIN(H51) -> 0.791500269 | J51: =Q($H$20,I51)-$H$40 -> 1.881169664e-10 | K51: =1/(1-H51^2)-$H$20^2/(1-$H$20^2*H51^2) -> 2.017992649 | L51: =-J51/K51 -> -9.321984725e-11
G52: 3 | H52: =H51+L51 -> 0.7114084298 | I52: =ASIN(H52) -> 0.7915002688
H54: f (D-M-S)
G55: initial | H55: =FormatAngle(DDtoDMS(DEGREES(I49)),6) -> +45°09'26.383308"
G56: 1 | H56: =FormatAngle(DDtoDMS(DEGREES(I50)),6) -> +45°21'01.006817"
G57: 2 | H57: =FormatAngle(DDtoDMS(DEGREES(I51)),6) -> +45°20'58.649624"
G58: 3 - Final | H58: =FormatAngle(DDtoDMS(DEGREES(I52)),6) -> +45°20'58.649597"

Sheet WCCS_Cylindric
A1: WCCS Transverse Mercator Cylindric Systems
B3: Units | C3: =Comps!C4 -> Survey Ft | D3: M, F, S | E3: =VLOOKUP($C$3,Units,3,FALSE) -> survey feet
B4: County | C4: =Comps!C15 -> Polk | E4: =VLOOKUP($C$4,WisCylin,1,FALSE)&" County" -> Polk County
B6: Direct Conversion | E6: Inverse Conversion
B7: Lat (f) | C7: =Comps!D15 -> 45.14 | D7: d.ms | E7: N | F7: =Comps!F16 -> 65825.648 | G7: =E3 -> survey feet
B8: Long (l) | C8: =Comps!E15 -> 92.13 | D8: d.ms | E8: E | F8: =Comps!G16 -> 582246.769 | G8: =E3 -> survey feet
B9: N | C9: =C53 -> 208919.2568 | D9: =E3 -> survey feet | E9: Lat (f) | F9: =H55 -> +44°50'26.723394"
B10: E | C10: =C54 -> 572350.9903 | D10: =E3 -> survey feet | E10: Long (l) | F10: =H56 -> +92°10'52.891669"
B11: g | C11: =C62 -> +0°17'44.980" | E11: g | F11: =H64 -> +0°19'07.349"
B12: k | C12: =C63 -> 1.000013157 | E12: k | F12: =H65 -> 1.000015696
A14: Zone Parameters | K14: County Parameters - Conic | S14: Enlarged Ellipsoid
B15: County | C15: =VLOOKUP($C$4,WisCylin,1,FALSE) -> Polk | L15: Elev | M15: Geoid Ht | N15: Long O | O15: Lat O | P15: False E | Q15: False N | R15: Scale factor | S15: a | T15: b
A16: lo | B16: Cen Mer | C16: =VLOOKUP($C$4,WisCylin,4,FALSE) -> 92.38 | D16: =RADIANS(DMStoDD(C16)) -> 1.616756664 | E16: radians | G16: Enlarged Ellipsoid | L16: (m) | M16: (m) | N16: (d.ms) | O16: (d.ms) | P16: (m) | Q16: (m) | S16: (m) | T16: (m)
A17: ko | B17: Scale- 1: | C17: =IF(D17=1," infinity",ABS(1/(1-D17))) -> infinity | D17: =VLOOKUP($C$4,WisCylin,8,FALSE) -> 1 | G17: a | H17: =VLOOKUP($C$4,WisCylin,9,FALSE)*VLOOKUP($C$3,Units,2,FALSE) -> 20926512.19 | I17: =$E$3 -> survey feet | K17: Adams | L17: 274.321 | M17: -35.05 | N17: 90 | O17: 43.22 | P17: 147218.6945 | Q17: 0 | R17: 0.999999 | S17: ='GRS80_&_Units'!$C$5+L17+M17 -> 6378376.271 | T17: ='GRS80_&_Units'!$C$6+L17+M17 -> 6356991.585
A18: lo | B18: Origin Long | C18: =VLOOKUP($C$4,WisCylin,4,FALSE) -> 92.38 | D18: =RADIANS(DMStoDD(C18)) -> 1.616756664 | E18: radians | G18: b | H18: =VLOOKUP($C$4,WisCylin,10,FALSE)*VLOOKUP($C$3,Units,2,FALSE) -> 20856352.6 | I18: =$E$3 -> survey feet | K18: Ashland | L18: 365.76 | M18: -30.84 | N18: 90.372 | O18: 45.4222 | P18: 172821.9456 | Q18: 0 | R18: 0.999997 | S18: ='GRS80_&_Units'!$C$5+L18+M18 -> 6378471.92 | T18: ='GRS80_&_Units'!$C$6+L18+M18 -> 6357087.234
A19: fo | B19: Origin Lat | C19: =VLOOKUP($C$4,WisCylin,5,FALSE) -> 44.394 | D19: =RADIANS(DMStoDD(C19)) -> 0.7794834365 | E19: radians | G19: f | H19: =(H17-H18)/H17 -> 0.003352665249 | K19: Barron | L19: 365.761 | M19: -29.83 | N19: 91.51 | O19: 45.08 | P19: 93150 | Q19: 0 | R19: 0.999996 | S19: ='GRS80_&_Units'!$C$5+L19+M19 -> 6378472.931 | T19: ='GRS80_&_Units'!$C$6+L19+M19 -> 6357088.245
A20: No | B20: Origin N | C20: =VLOOKUP($C$4,WisCylin,7,FALSE) -> 0 | D20: =C20*VLOOKUP($C$3,Units,2,FALSE) -> 0 | E20: =$E$3 -> survey feet | G20: e | H20: =SQRT((H17^2-H18^2)/H17^2) -> 0.0818174195 | K20: Brown | L20: 35.8 | M20: -35.8 | N20: 88 | O20: 43 | P20: 31600 | Q20: 4600 | R20: 1.00002 | S20: ='GRS80_&_Units'!$C$5+L20+M20 -> 6378137 | T20: ='GRS80_&_Units'!$C$6+L20+M20 -> 6356752.314
A21: Eo | B21: Origin E | C21: =VLOOKUP($C$4,WisCylin,6,FALSE) -> 141732.2834 | D21: =C21*VLOOKUP($C$3,Units,2,FALSE) -> 464999.9998 | E21: =$E$3 -> survey feet | G21: e' | H21: =SQRT((H17^2-H18^2)/H18^2) -> 0.08209264867 | K21: Buffalo | L21: 274.321 | M21: -30.33 | N21: 91.475 | O21: 43.2853 | P21: 175260.3505 | Q21: 0 | R21: 1 | S21: ='GRS80_&_Units'!$C$5+L21+M21 -> 6378380.991 | T21: ='GRS80_&_Units'!$C$6+L21+M21 -> 6356996.305
K22: Calumet | L22: 243.84 | M22: -35.75 | N22: 88.3 | O22: 42.431 | P22: 244754.8895 | Q22: 0 | R22: 0.999996 | S22: ='GRS80_&_Units'!$C$5+L22+M22 -> 6378345.09 | T22: ='GRS80_&_Units'!$C$6+L22+M22 -> 6356960.404
A23: Zone Constants | K23: Clark | L23: 365.761 | M23: -32.36 | N23: 90.423 | O23: 43.36 | P23: 199949.1998 | Q23: 0 | R23: 0.999994 | S23: ='GRS80_&_Units'!$C$5+L23+M23 -> 6378470.401 | T23: ='GRS80_&_Units'!$C$6+L23+M23 -> 6357085.715
B24: n | C24: =(H17-H18)/(H17+H18) -> 0.001679147434 | K24: Dodge | L24: 274.321 | M24: -34.51 | N24: 88.463 | O24: 41.282 | P24: 263347.7267 | Q24: 0 | R24: 0.999997 | S24: ='GRS80_&_Units'!$C$5+L24+M24 -> 6378376.811 | T24: ='GRS80_&_Units'!$C$6+L24+M24 -> 6356992.125
B25: r | C25: =H17*(1-C24)*(1-C24^2)*(1+9*C24^2/4+225*C24^4/64) -> 20891447.12 | D25: =$E$3 -> survey feet | K25: Door | L25: 213.36 | M25: -36.44 | N25: 87.162 | O25: 44.24 | P25: 158801.1176 | Q25: 0 | R25: 0.999991 | S25: ='GRS80_&_Units'!$C$5+L25+M25 -> 6378313.92 | T25: ='GRS80_&_Units'!$C$6+L25+M25 -> 6356929.234
B26: u2 | C26: =-3*C24/2+9*C24^3/16 -> -0.002518718488 | E26: v2 | F26: =3*C24/2-27*C24^3/32 -> 0.002518717157 | K26: Douglas | L26: 304.8 | M26: -26.87 | N26: 91.55 | O26: 45.53 | P26: 59131.31826 | Q26: 0 | R26: 0.999994968 | S26: ='GRS80_&_Units'!$C$5+L26+M26 -> 6378414.93 | T26: ='GRS80_&_Units'!$C$6+L26+M26 -> 6357030.244
B27: u4 | C27: =15*C24^2/16-15*C24^4/32 -> 2.643311373e-06 | E27: v4 | F27: =21*C24^2/16-55*C24^4/32 -> 3.700627475e-06 | K27: Dunn | L27: 304.801 | M27: -28.78 | N27: 91.534 | O27: 44.243 | P27: 51816.104 | Q27: 0 | R27: 0.99999773 | S27: ='GRS80_&_Units'!$C$5+L27+M27 -> 6378413.021 | T27: ='GRS80_&_Units'!$C$6+L27+M27 -> 6357028.335
B28: u6 | C28: =-35*C24^3/48 -> -3.45217893e-09 | E28: v6 | F28: =151*C24^3/96 -> 7.44684312e-09 | K28: Florence | L28: 426.721 | M28: -32.87 | N28: 88.083 | O28: 45.262 | P28: 133502.667 | Q28: 0 | R28: 0.9999935 | S28: ='GRS80_&_Units'!$C$5+L28+M28 -> 6378530.851 | T28: ='GRS80_&_Units'!$C$6+L28+M28 -> 6357146.165
B29: u8 | C29: =315*C24^4/512 -> 4.8909803e-12 | E29: v8 | F29: =1097*C24^4/512 -> 1.703303298e-11 | K29: Fond du Lac | L29: 243.84 | M29: -35.75 | N29: 88.3 | O29: 42.431 | P29: 244754.8895 | Q29: 0 | R29: 0.999996 | S29: ='GRS80_&_Units'!$C$5+L29+M29 -> 6378345.09 | T29: ='GRS80_&_Units'!$C$6+L29+M29 -> 6356960.404
B30: U0 | C30: =2*(C26-2*C27+3*C28-4*C29) -> -0.005048030974 | E30: V0 | F30: =2*(F26-2*F27+3*F28-4*F29) -> 0.005022676348 | K30: Forest | L30: 487.681 | M30: -33.16 | N30: 88.38 | O30: 44.002 | P30: 275844.5516 | Q30: 0 | R30: 0.999996 | S30: ='GRS80_&_Units'!$C$5+L30+M30 -> 6378591.521 | T30: ='GRS80_&_Units'!$C$6+L30+M30 -> 6357206.835
B31: U2 | C31: =8*(C27-4*C28+10*C29) -> 2.125735199e-05 | E31: V2 | F31: =8*(F27-4*F28+10*F29) -> 2.936808346e-05 | K31: Grant | L31: 274.321 | M31: -32.44 | N31: 90.48 | O31: 41.244 | P31: 242316.4847 | Q31: 0 | R31: 0.999997 | S31: ='GRS80_&_Units'!$C$5+L31+M31 -> 6378378.881 | T31: ='GRS80_&_Units'!$C$6+L31+M31 -> 6356994.195
B32: U4 | C32: =32*(C28-6*C29) -> -1.11408794e-07 | E32: V4 | F32: =32*(F28-6*F29) -> 2.350286375e-07 | K32: Iowa | L32: 304.801 | M32: -33.76 | N32: 90.094 | O32: 42.322 | P32: 113081.0262 | Q32: 0 | R32: 0.999997 | S32: ='GRS80_&_Units'!$C$5+L32+M32 -> 6378408.041 | T32: ='GRS80_&_Units'!$C$6+L32+M32 -> 6357023.355
B33: U6 | C33: =128*C29 -> 6.260454784e-10 | E33: V6 | F33: =128*F29 -> 2.180228221e-09 | K33: Iron | L33: 487.681 | M33: -30.39 | N33: 90.152 | O33: 45.26 | P33: 220980.442 | Q33: 0 | R33: 0.999996 | S33: ='GRS80_&_Units'!$C$5+L33+M33 -> 6378594.291 | T33: ='GRS80_&_Units'!$C$6+L33+M33 -> 6357209.605
B34: wo | C34: =D19+SIN(D19)*COS(D19)*(C30+C31*COS(D19)^2+C32*COS(D19)^4+C33*COS(D19)^6) -> 0.7769649602 | K34: Jefferson | L34: 274.321 | M34: -34.51 | N34: 88.463 | O34: 41.282 | P34: 263347.7267 | Q34: 0 | R34: 0.999997 | S34: ='GRS80_&_Units'!$C$5+L34+M34 -> 6378376.811 | T34: ='GRS80_&_Units'!$C$6+L34+M34 -> 6356992.125
B35: So | C35: =D17*C34*C25 -> 16231922.38 | D35: =$E$3 -> survey feet | K35: Juneau | L35: 274.321 | M35: -35.05 | N35: 90 | O35: 43.22 | P35: 147218.6945 | Q35: 0 | R35: 0.999999 | S35: ='GRS80_&_Units'!$C$5+L35+M35 -> 6378376.271 | T35: ='GRS80_&_Units'!$C$6+L35+M35 -> 6356991.585
K36: Kenosha | L36: 213.36 | M36: -34.66 | N36: 87.534 | O36: 42.13 | P36: 185928.3719 | Q36: 0 | R36: 0.999998 | S36: ='GRS80_&_Units'!$C$5+L36+M36 -> 6378315.7 | T36: ='GRS80_&_Units'!$C$6+L36+M36 -> 6356931.014
A37: Direct Conversion | C37: d.ms | F37: Inverse Conversion | K37: Kewaunee | L37: 182.88 | M37: -34.02 | N37: 87.33 | O37: 43.16 | P37: 79857.76 | Q37: 0 | R37: 1 | S37: ='GRS80_&_Units'!$C$5+L37+M37 -> 6378285.86 | T37: ='GRS80_&_Units'!$C$6+L37+M37 -> 6356901.174
B38: Lat (f) | C38: =C7 -> 45.14 | D38: =RADIANS(DMStoDD(C38)) -> 0.7894705983 | E38: radians | G38: N | H38: =F7 -> 65825.648 | I38: =$E$3 -> survey feet | K38: LaCrosse | L38: 274.321 | M38: -32.02 | N38: 91.19 | O38: 43.2704 | P38: 130454.6609 | Q38: 0 | R38: 0.999994 | S38: ='GRS80_&_Units'!$C$5+L38+M38 -> 6378379.301 | T38: ='GRS80_&_Units'!$C$6+L38+M38 -> 6356994.615
B39: Long (l) | C39: =C8 -> 92.13 | D39: =RADIANS(DMStoDD(C39)) -> 1.609484459 | E39: radians | G39: E | H39: =F8 -> 582246.769 | I39: =$E$3 -> survey feet | K39: Lincoln | L39: 426.721 | M39: -31.9 | N39: 89.44 | O39: 44.504 | P39: 116129.0323 | Q39: 0 | R39: 0.999998 | S39: ='GRS80_&_Units'!$C$5+L39+M39 -> 6378531.821 | T39: ='GRS80_&_Units'!$C$6+L39+M39 -> 6357147.135
B40: L | C40: =(D39-D16)*COS(D38) -> -0.00512124166 | G40: w | H40: =(H38-D20+C35)/(D17*C25) -> 0.7801158022 | K40: Manitowoc | L40: 182.88 | M40: -34.02 | N40: 87.33 | O40: 43.16 | P40: 79857.76 | Q40: 0 | R40: 1 | S40: ='GRS80_&_Units'!$C$5+L40+M40 -> 6378285.86 | T40: ='GRS80_&_Units'!$C$6+L40+M40 -> 6356901.174
B41: w | C41: =D38+SIN(D38)*COS(D38)*(C30+C31*COS(D38)^2+C32*COS(D38)^4+C33*COS(D38)^6) -> 0.7869519238 | G41: ff | H41: =H40+(SIN(H40)*COS(H40))*(F30+F31*COS(H40)^2+F32*COS(H40)^4+F33*COS(H40)^6) -> 0.7826344495 | K41: Marinette | L41: 274.321 | M41: -35.28 | N41: 87.424 | O41: 44.413 | P41: 238658.8774 | Q41: 0 | R41: 0.999986 | S41: ='GRS80_&_Units'!$C$5+L41+M41 -> 6378376.041 | T41: ='GRS80_&_Units'!$C$6+L41+M41 -> 6356991.355
B42: S | C42: =D17*C41*C25 -> 16440564.5 | D42: =$E$3 -> survey feet | G42: tf | H42: =TAN(H41) -> 0.9944877923 | K42: Menominee | L42: 304.801 | M42: -35.2 | N42: 88.25 | O42: 44.43 | P42: 105461.0109 | Q42: 0 | R42: 0.999994 | S42: ='GRS80_&_Units'!$C$5+L42+M42 -> 6378406.601 | T42: ='GRS80_&_Units'!$C$6+L42+M42 -> 6357021.915
B43: t | C43: =TAN(D38) -> 1.00817822 | G43: hf2 | H43: =H21^2*COS(H41)^2 -> 0.003388226617 | K43: Milwaukee | L43: 213.36 | M43: -34.66 | N43: 87.534 | O43: 42.13 | P43: 185928.3719 | Q43: 0 | R43: 0.999998 | S43: ='GRS80_&_Units'!$C$5+L43+M43 -> 6378315.7 | T43: ='GRS80_&_Units'!$C$6+L43+M43 -> 6356931.014
B44: h2 | C44: =H21^2*COS(D38)^2 -> 0.003342156821 | G44: Rf | H44: =(D17*H17)/SQRT(1-H20^2*SIN(H41)^2) -> 20961426.79 | I44: =$E$3 -> survey feet | K44: Oconto | L44: 243.84 | M44: -35.42 | N44: 87.543 | O44: 44.235 | P44: 182880.3658 | Q44: 0 | R44: 0.999991 | S44: ='GRS80_&_Units'!$C$5+L44+M44 -> 6378345.42 | T44: ='GRS80_&_Units'!$C$6+L44+M44 -> 6356960.734
B45: R | C45: =(D17*H17)/SQRT(1-H20^2*SIN(D38)^2) -> 20961908.02 | D45: =$E$3 -> survey feet | G45: Q | H45: =(H39-D21)/H44 -> 0.005593453652 | K45: Outagamie | L45: 243.84 | M45: -35.75 | N45: 88.3 | O45: 42.431 | P45: 244754.8895 | Q45: 0 | R45: 0.999996 | S45: ='GRS80_&_Units'!$C$5+L45+M45 -> 6378345.09 | T45: ='GRS80_&_Units'!$C$6+L45+M45 -> 6356960.404
B46: A1 | C46: =-C45 -> -20961908.02 | G46: B2 | H46: =-H42/2*(1+H43) -> -0.4989286712 | K46: Ozaukee | L46: 213.36 | M46: -34.66 | N46: 87.534 | O46: 42.13 | P46: 185928.3719 | Q46: 0 | R46: 0.999998 | S46: ='GRS80_&_Units'!$C$5+L46+M46 -> 6378315.7 | T46: ='GRS80_&_Units'!$C$6+L46+M46 -> 6356931.014
B47: A2 | C47: =C45*C43/2 -> 10566669.56 | G47: B3 | H47: =-(1+2*H42^2+H43)/6 -> -0.4969000275 | K47: Polk | L47: 304.801 | M47: -28.13 | N47: 92.38 | O47: 44.394 | P47: 141732.2834 | Q47: 0 | R47: 1 | S47: ='GRS80_&_Units'!$C$5+L47+M47 -> 6378413.671 | T47: ='GRS80_&_Units'!$C$6+L47+M47 -> 6357028.985
B48: A3 | C48: =(1-C43^2+C44)/6 -> -0.002180194519 | G48: B4 | H48: =-(5+3*H42^2+H43*(1-9*H42^2)-4*H43^2)/12 -> -0.6616834522 | K48: Price | L48: 457.201 | M48: -30.31 | N48: 90.292 | O48: 44.332 | P48: 227990.856 | Q48: 0 | R48: 0.999998 | S48: ='GRS80_&_Units'!$C$5+L48+M48 -> 6378563.891 | T48: ='GRS80_&_Units'!$C$6+L48+M48 -> 6357179.205
B49: A4 | C49: =(5-C43^2+C44*(9+4*C44))/12 -> 0.334475064 | G49: B5 | H49: =(5+28*H42^2+24*H42^4+H43*(6+8*H42^2))/120 -> 0.4684540973 | K49: Racine | L49: 213.36 | M49: -34.66 | N49: 87.534 | O49: 42.13 | P49: 185928.3719 | Q49: 0 | R49: 0.999998 | S49: ='GRS80_&_Units'!$C$5+L49+M49 -> 6378315.7 | T49: ='GRS80_&_Units'!$C$6+L49+M49 -> 6356931.014
B50: A5 | C50: =(5-18*C43^2+C43^4+C44*(14-58*C43^2))/120 -> -0.1034395162 | G50: B6 | H50: =(61+90*H42^2+45*H42^4+H43*(46-252*H42^2-90*H42^4))/360 -> 0.5362212603 | K50: Rock | L50: 274.321 | M50: -33.65 | N50: 89.042 | O50: 41.564 | P50: 146304.2926 | Q50: 0 | R50: 0.999996 | S50: ='GRS80_&_Units'!$C$5+L50+M50 -> 6378377.671 | T50: ='GRS80_&_Units'!$C$6+L50+M50 -> 6356992.985
B51: A6 | C51: =(61-58*C43^2+C43^4+C44*(270-330*C43^2))/360 -> 0.007949779719 | G51: B7 | H51: =-(61+662*H42^2+1320*H42^4+720*H42^6)/5040 -> -0.53638299 | K51: Rusk | L51: 365.761 | M51: -30.01 | N51: 91.04 | O51: 43.551 | P51: 250546.1011 | Q51: 0 | R51: 0.999997 | S51: ='GRS80_&_Units'!$C$5+L51+M51 -> 6378472.751 | T51: ='GRS80_&_Units'!$C$6+L51+M51 -> 6357088.065
B52: A7 | C52: =(61-479*C43^2+179*C43^4-C43^6)/5040 -> -0.04801369542 | G52: L | H52: =H45*(1+H45^2*(H47+H45^2*(H49+H51*H45^2))) -> 0.005593366697 | K52: Sauk | L52: 304.801 | M52: -34.52 | N52: 89.54 | O52: 42.491 | P52: 185623.5713 | Q52: 0 | R52: 0.999995 | S52: ='GRS80_&_Units'!$C$5+L52+M52 -> 6378407.281 | T52: ='GRS80_&_Units'!$C$6+L52+M52 -> 6357022.595
B53: N | C53: =C42-C35+D20+C47*C40^2*(1+C40^2*(C49+C51*C40^2)) -> 208919.2568 | D53: =$E$3 -> survey feet | G53: Lat (f) | H53: =H41+H46*H45^2*(1+H45^2*(H48+H50*H45^2)) -> 0.78261884 | K53: Shawano | L53: 304.801 | M53: -35.75 | N53: 88.362 | O53: 44.021 | P53: 262433.3249 | Q53: 0 | R53: 0.99999 | S53: ='GRS80_&_Units'!$C$5+L53+M53 -> 6378406.051 | T53: ='GRS80_&_Units'!$C$6+L53+M53 -> 6357021.365
B54: E | C54: =D21+C46*C40*(1+C40^2*(C48+C40^2*(C50+C52*C40^2))) -> 572350.9903 | D54: =$E$3 -> survey feet | G54: Long (l) | H54: =D18-(H52/COS(H41)) -> 1.60886822 | K54: Sheboygan | L54: 182.88 | M54: -34.02 | N54: 87.33 | O54: 43.16 | P54: 79857.76 | Q54: 0 | R54: 1 | S54: ='GRS80_&_Units'!$C$5+L54+M54 -> 6378285.86 | T54: ='GRS80_&_Units'!$C$6+L54+M54 -> 6356901.174
G55: Lat (f) | H55: =FormatAngle(DDtoDMS(DEGREES(H53)),6) -> +44°50'26.723394" | K55: St. Croix | L55: 304.801 | M55: -29.29 | N55: 92.38 | O55: 44.021 | P55: 165506.731 | Q55: 0 | R55: 0.999995 | S55: ='GRS80_&_Units'!$C$5+L55+M55 -> 6378412.511 | T55: ='GRS80_&_Units'!$C$6+L55+M55 -> 6357027.825
B56: C1 | C56: =-C43 -> -1.00817822 | G56: Long (l) | H56: =FormatAngle(DDtoDMS(DEGREES(H54)),6) -> +92°10'52.891669" | K56: Trempealeau | L56: 274.321 | M56: -31.23 | N56: 91.22 | O56: 43.094 | P56: 256946.9138 | Q56: 0 | R56: 0.999998 | S56: ='GRS80_&_Units'!$C$5+L56+M56 -> 6378380.091 | T56: ='GRS80_&_Units'!$C$6+L56+M56 -> 6356995.405
B57: C3 | C57: =(1+3*C44+2*C44^2)/3 -> 0.3366829368 | K57: Washington | L57: 304.801 | M57: -34.66 | N57: 88.035 | O57: 42.5505 | P57: 120091.4402 | Q57: 0 | R57: 0.999995 | S57: ='GRS80_&_Units'!$C$5+L57+M57 -> 6378407.141 | T57: ='GRS80_&_Units'!$C$6+L57+M57 -> 6357022.455
B58: C5 | C58: =(2-C43^2)/15 -> 0.0655717784 | G58: D1 | H58: =H42 -> 0.9944877923 | K58: Waukesha | L58: 274.321 | M58: -34.45 | N58: 88.133 | O58: 42.341 | P58: 208788.4176 | Q58: 0 | R58: 0.999997 | S58: ='GRS80_&_Units'!$C$5+L58+M58 -> 6378376.871 | T58: ='GRS80_&_Units'!$C$6+L58+M58 -> 6356992.185
B59: F2 | C59: =(1+C44)/2 -> 0.5016710784 | G59: D3 | H59: =-(1+H42^2-H43-2*H43^2)/3 -> -0.6618649274 | K59: Waupaca | L59: 274.321 | M59: -36.07 | N59: 88.49 | O59: 43.2513 | P59: 185013.9701 | Q59: 0 | R59: 0.999996 | S59: ='GRS80_&_Units'!$C$5+L59+M59 -> 6378375.251 | T59: ='GRS80_&_Units'!$C$6+L59+M59 -> 6356990.565
B60: F4 | C60: =(5-4*C43^2+C44*(9-24*C43^2))/12 -> 0.07357141735 | G60: D5 | H60: =(2+5*H42^2+3*H42^4)/15 -> 0.6586285511 | K60: Winnebago | L60: 243.84 | M60: -35.75 | N60: 88.3 | O60: 42.431 | P60: 244754.8895 | Q60: 0 | R60: 0.999996 | S60: ='GRS80_&_Units'!$C$5+L60+M60 -> 6378345.09 | T60: ='GRS80_&_Units'!$C$6+L60+M60 -> 6356960.404
B61: g | C61: =C56*C40*(1+C40^2*(C57+C58*C40^2)) -> 0.005163169895 | D61: radians | G61: G2 | H61: =(1+H43)/2 -> 0.5016941133
B62: g | C62: =FormatAngle(DDtoDMS(DEGREES(C61)),3) -> +0°17'44.980" | G62: G4 | H62: =(1+5*H43)/12 -> 0.08474509442
B63: k | C63: =D17*(1+C59*C40^2*(1+C60*C40^2)) -> 1.000013157 | G63: g | H63: =H58*H45*(1+H45^2*(H59+H60*H45^2)) -> 0.005562506189
G64: g | H64: =FormatAngle(DDtoDMS(DEGREES(H63)),3) -> +0°19'07.349"
G65: k | H65: =D17*(1+H61*H45^2*(1+H62*H45^2)) -> 1.000015696

Sheet GRS80_&_Units
A1: Ellipsoid and Units
A3: GRS 80 Ellipsoid Parameters
B5: a | C5: 6378137 | D5: semimajor axis, meters | E5: fixed
B6: b | C6: =C5-C5*C7 -> 6356752.314 | D6: semiminor axis; meters | E6: computed
B7: f | C7: =1/298.25722210088 -> 0.003352810681 | D7: flattening | E7: fixed
B8: e2 | C8: =(C5^2-C6^2)/C5^2 -> 0.006694380023 | D8: first eccentricity squared | E8: computed
B9: e' 2 | C9: =(C5^2-C6^2)/C6^2 -> 0.006739496775 | D9: second eccentricity squared | E9: computed
A11: Unit Conversion Constants
B12: Unit | C12: Multiply units by:
B13: Meters | C13: 1 | D13: meters
B14: Int'l Ft | C14: =1000/(25.4*12) -> 3.280839895 | D14: int'l feet
B15: Survey Ft | C15: =39.37/12 -> 3.280833333 | D15: survey feet
B17: Note - Base units are meters.
C18: The above conversions are multipiers
